Workbook

Sheet Sheet1
G2: Ribbon | H2: CQG Market Data Including All Time Highs and Lows | R2: Continuation | S2: =RTD("cqg.rtd", ,"SystemInfo", "Linetime") -> 44726.30466
R3: ADC
C4: Symbols | D4: Long Description | G4: Last | H4: NC | I4: Y_Setttle | J4: Open | K4: High | L4: Low | M4: %NC | N4: Weekly %NC | O4: Monthly %NC | P4: Annual %NC | Q4: High Date & Price | S4: Low Date & Price | U4: Symbols
A5: =IF(LEN(RTD("cqg.rtd",,"ContractData","Tsize("&C5&")","LastQuoteToday",,"T"))-2<0,0,LEN(RTD("cqg.rtd",,"ContractData","Tsize("&C5&")","LastQuoteToday",,"T"))-2) -> 0 | B5: =IF(RTD("cqg.rtd",,"ContractData",C5,"TickSize",,"T")=0.00390625,"B",IF(RTD("cqg.rtd",,"ContractData",C5,"TickSize",,"T")=0.0078125,"B",IF(RTD("cqg.rtd",,"ContractData",C5,"TickSize",,"T")=0.015625,"B",IF(RTD("cqg.rtd",,"ContractData",C5,"TickSize",,"T")=0.03125,"B",VLOOKUP(A5,$A$43:$B$50,2,FALSE))))) -> # | C5: YM? | D5: =IFERROR(RTD("cqg.rtd", ,"ContractData", $C5, "LongDescription",, "T"),"") -> E-mini Dow ($5), Sep 22 | G5: =IFERROR(IF(B5="B",RTD("cqg.rtd", ,"ContractData",C5, "LastTradeToday",, "B"),TEXT(RTD("cqg.rtd", ,"ContractData",C5, "LastTradeToday",, "T"),B5)),"") -> 30564 | H5: =IFERROR(IF(B5="B",RTD("cqg.rtd", ,"ContractData",C5, "NetLastTradeToday",, "B"),TEXT(RTD("cqg.rtd", ,"ContractData",C5, "NetLastTradeToday",, "T"),B5)),"") -> 63 | I5: =IFERROR(IF(B5="B",RTD("cqg.rtd", ,"ContractData",C5, "Y_Settlement",, "B"),TEXT(RTD("cqg.rtd", ,"ContractData",C5, "Y_Settlement",, "T"),B5)),"") -> 30501 | J5: =IFERROR(IF(B5="B",RTD("cqg.rtd", ,"ContractData",C5, "Open",, "B"),TEXT(RTD("cqg.rtd", ,"ContractData",C5, "Open",, "T"),B5)),"") -> 30532 | K5: =IFERROR(IF(B5="B",RTD("cqg.rtd", ,"ContractData",C5, "High",, "B"),TEXT(RTD("cqg.rtd", ,"ContractData",C5, "High",, "T"),B5)),"") -> 30848 | L5: =IFERROR(IF(B5="B",RTD("cqg.rtd", ,"ContractData",C5, "Low",, "B"),TEXT(RTD("cqg.rtd", ,"ContractData",C5, "Low",, "T"),B5)),"") -> 30504 | M5: =IFERROR(RTD("cqg.rtd", ,"ContractData",C5, "PerCentNetLastTrade",, "T")/100,"") -> 0.002065506049 | N5: =IFERROR( RTD("cqg.rtd",,"StudyData",C5, "PCB","BaseType=Index,Index=1", "Close", "AW",,"all",,,"True","T")/100,"") -> -0.02535157371 | O5: =IFERROR(RTD("cqg.rtd",,"StudyData",C5, "PCB","BaseType=Index,Index=1", "Close", "AM",,"all",,,"True","T")/100,"") -> -0.07218748103 | P5: =IFERROR( RTD("cqg.rtd",,"StudyData",C5, "PCB","BaseType=Index,Index=1", "Close", "AA",,"all",,,"True","T")/100,"") -> -0.1520599251 | Q5: =IFERROR(RTD("cqg.rtd",,"StudyData",$C5,"MaxAll^",,"Month",$R$3,0,"all",,,,"T")&"/"&RTD("cqg.rtd",,"StudyData",$C5,"MaxAll^",,"Day",$R$3,0,"all",,,,"T")&"/"&RTD("cqg.rtd",,"StudyData",$C5,"MaxAll^",,"Year",$R$3,0,"all",,,,"T"),"") -> 1/5/2022 | R5: =IFERROR(IF(B5="B",TRUNC(RTD("cqg.rtd",,"StudyData",$C5,"MaxAll^",,"Max",$R$3,0,"all",,,,"T"))&"-"&MOD(RTD("cqg.rtd",,"StudyData",$C5,"MaxAll^",,"Max",$R$3,0,"all",,,,"T"),1)*32,TEXT(RTD("cqg.rtd",,"StudyData",$C5,"MaxAll^",,"Max",$R$3,0,"all",,,,"T"),B5)),"") -> 36832 | S5: =IFERROR(RTD("cqg.rtd",,"StudyData",$C5,"MinAll^",,"Month",$R$3,0,"all",,,,"T")&"/"&RTD("cqg.rtd",,"StudyData",$C5,"MinAll^",,"Day",$R$3,0,"all",,,,"T")&"/"&RTD("cqg.rtd",,"StudyData",$C5,"MinAll^",,"Year",$R$3,0,"all",,,,"T"),"") -> 3/6/2009 | T5: =IFERROR(IF(B5="B",TRUNC(RTD("cqg.rtd",,"StudyData",$C5,"MinAll^",,"Min",$R$3,0,"all",,,,"T"))&"-"&MOD(RTD("cqg.rtd",,"StudyData",$C5,"MinAll^",,"Min",$R$3,0,"all",,,,"T"),1)*32,TEXT(RTD("cqg.rtd",,"StudyData",$C5,"MinAll^",,"Min",$R$3,0,"all",,,,"T"),B5)),"") -> 6460 | U5: =C5 -> YM?
A6: =IF(LEN(RTD("cqg.rtd",,"ContractData","Tsize("&C6&")","LastQuoteToday",,"T"))-2<0,0,LEN(RTD("cqg.rtd",,"ContractData","Tsize("&C6&")","LastQuoteToday",,"T"))-2) -> 2 | B6: =IF(RTD("cqg.rtd",,"ContractData",C6,"TickSize",,"T")=0.00390625,"B",IF(RTD("cqg.rtd",,"ContractData",C6,"TickSize",,"T")=0.0078125,"B",IF(RTD("cqg.rtd",,"ContractData",C6,"TickSize",,"T")=0.015625,"B",IF(RTD("cqg.rtd",,"ContractData",C6,"TickSize",,"T")=0.03125,"B",VLOOKUP(A6,$A$43:$B$50,2,FALSE))))) -> #.00 | C6: EP? | D6: =IFERROR(RTD("cqg.rtd", ,"ContractData", $C6, "LongDescription",, "T"),"") -> E-Mini S&P 500, Sep 22 | G6: =IFERROR(IF(B6="B",RTD("cqg.rtd", ,"ContractData",C6, "LastTradeToday",, "B"),TEXT(RTD("cqg.rtd", ,"ContractData",C6, "LastTradeToday",, "T"),B6)),"") -> 3765.25 | H6: =IFERROR(IF(B6="B",RTD("cqg.rtd", ,"ContractData",C6, "NetLastTradeToday",, "B"),TEXT(RTD("cqg.rtd", ,"ContractData",C6, "NetLastTradeToday",, "T"),B6)),"") -> 11.75 | I6: =IFERROR(IF(B6="B",RTD("cqg.rtd", ,"ContractData",C6, "Y_Settlement",, "B"),TEXT(RTD("cqg.rtd", ,"ContractData",C6, "Y_Settlement",, "T"),B6)),"") -> 3753.50 | J6: =IFERROR(IF(B6="B",RTD("cqg.rtd", ,"ContractData",C6, "Open",, "B"),TEXT(RTD("cqg.rtd", ,"ContractData",C6, "Open",, "T"),B6)),"") -> 3760.75 | K6: =IFERROR(IF(B6="B",RTD("cqg.rtd", ,"ContractData",C6, "High",, "B"),TEXT(RTD("cqg.rtd", ,"ContractData",C6, "High",, "T"),B6)),"") -> 3807.50 | L6: =IFERROR(IF(B6="B",RTD("cqg.rtd", ,"ContractData",C6, "Low",, "B"),TEXT(RTD("cqg.rtd", ,"ContractData",C6, "Low",, "T"),B6)),"") -> 3754.50 | M6: =IFERROR(RTD("cqg.rtd", ,"ContractData",C6, "PerCentNetLastTrade",, "T")/100,"") -> 0.003130411616 | N6: =IFERROR( RTD("cqg.rtd",,"StudyData",C6, "PCB","BaseType=Index,Index=1", "Close", "AW",,"all",,,"True","T")/100,"") -> -0.03467504166 | O6: =IFERROR(RTD("cqg.rtd",,"StudyData",C6, "PCB","BaseType=Index,Index=1", "Close", "AM",,"all",,,"True","T")/100,"") -> -0.08892384006 | P6: =IFERROR( RTD("cqg.rtd",,"StudyData",C6, "PCB","BaseType=Index,Index=1", "Close", "AA",,"all",,,"True","T")/100,"") -> -0.2066477033 | Q6: =IFERROR(RTD("cqg.rtd",,"StudyData",$C6,"MaxAll^",,"Month",$R$3,0,"all",,,,"T")&"/"&RTD("cqg.rtd",,"StudyData",$C6,"MaxAll^",,"Day",$R$3,0,"all",,,,"T")&"/"&RTD("cqg.rtd",,"StudyData",$C6,"MaxAll^",,"Year",$R$3,0,"all",,,,"T"),"") -> 1/4/2022 | R6: =IFERROR(IF(B6="B",TRUNC(RTD("cqg.rtd",,"StudyData",$C6,"MaxAll^",,"Max",$R$3,0,"all",,,,"T"))&"-"&MOD(RTD("cqg.rtd",,"StudyData",$C6,"MaxAll^",,"Max",$R$3,0,"all",,,,"T"),1)*32,TEXT(RTD("cqg.rtd",,"StudyData",$C6,"MaxAll^",,"Max",$R$3,0,"all",,,,"T"),B6)),"") -> 4808.25 | S6: =IFERROR(RTD("cqg.rtd",,"StudyData",$C6,"MinAll^",,"Month",$R$3,0,"all",,,,"T")&"/"&RTD("cqg.rtd",,"StudyData",$C6,"MinAll^",,"Day",$R$3,0,"all",,,,"T")&"/"&RTD("cqg.rtd",,"StudyData",$C6,"MinAll^",,"Year",$R$3,0,"all",,,,"T"),"") -> 3/6/2009 | T6: =IFERROR(IF(B6="B",TRUNC(RTD("cqg.rtd",,"StudyData",$C6,"MinAll^",,"Min",$R$3,0,"all",,,,"T"))&"-"&MOD(RTD("cqg.rtd",,"StudyData",$C6,"MinAll^",,"Min",$R$3,0,"all",,,,"T"),1)*32,TEXT(RTD("cqg.rtd",,"StudyData",$C6,"MinAll^",,"Min",$R$3,0,"all",,,,"T"),B6)),"") -> 665.75 | U6: =C6 -> EP?
A7: =IF(LEN(RTD("cqg.rtd",,"ContractData","Tsize("&C7&")","LastQuoteToday",,"T"))-2<0,0,LEN(RTD("cqg.rtd",,"ContractData","Tsize("&C7&")","LastQuoteToday",,"T"))-2) -> 2 | B7: =IF(RTD("cqg.rtd",,"ContractData",C7,"TickSize",,"T")=0.00390625,"B",IF(RTD("cqg.rtd",,"ContractData",C7,"TickSize",,"T")=0.0078125,"B",IF(RTD("cqg.rtd",,"ContractData",C7,"TickSize",,"T")=0.015625,"B",IF(RTD("cqg.rtd",,"ContractData",C7,"TickSize",,"T")=0.03125,"B",VLOOKUP(A7,$A$43:$B$50,2,FALSE))))) -> #.00 | C7: ENQ? | D7: =IFERROR(RTD("cqg.rtd", ,"ContractData", $C7, "LongDescription",, "T"),"") -> E-mini NASDAQ-100, Sep 22 | G7: =IFERROR(IF(B7="B",RTD("cqg.rtd", ,"ContractData",C7, "LastTradeToday",, "B"),TEXT(RTD("cqg.rtd", ,"ContractData",C7, "LastTradeToday",, "T"),B7)),"") -> 11388.00 | H7: =IFERROR(IF(B7="B",RTD("cqg.rtd", ,"ContractData",C7, "NetLastTradeToday",, "B"),TEXT(RTD("cqg.rtd", ,"ContractData",C7, "NetLastTradeToday",, "T"),B7)),"") -> 60.50 | I7: =IFERROR(IF(B7="B",RTD("cqg.rtd", ,"ContractData",C7, "Y_Settlement",, "B"),TEXT(RTD("cqg.rtd", ,"ContractData",C7, "Y_Settlement",, "T"),B7)),"") -> 11327.50 | J7: =IFERROR(IF(B7="B",RTD("cqg.rtd", ,"ContractData",C7, "Open",, "B"),TEXT(RTD("cqg.rtd", ,"ContractData",C7, "Open",, "T"),B7)),"") -> 11367.50 | K7: =IFERROR(IF(B7="B",RTD("cqg.rtd", ,"ContractData",C7, "High",, "B"),TEXT(RTD("cqg.rtd", ,"ContractData",C7, "High",, "T"),B7)),"") -> 11534.50 | L7: =IFERROR(IF(B7="B",RTD("cqg.rtd", ,"ContractData",C7, "Low",, "B"),TEXT(RTD("cqg.rtd", ,"ContractData",C7, "Low",, "T"),B7)),"") -> 11344.25 | M7: =IFERROR(RTD("cqg.rtd", ,"ContractData",C7, "PerCentNetLastTrade",, "T")/100,"") -> 0.00534098433 | N7: =IFERROR( RTD("cqg.rtd",,"StudyData",C7, "PCB","BaseType=Index,Index=1", "Close", "AW",,"all",,,"True","T")/100,"") -> -0.04042468033 | O7: =IFERROR(RTD("cqg.rtd",,"StudyData",C7, "PCB","BaseType=Index,Index=1", "Close", "AM",,"all",,,"True","T")/100,"") -> -0.101485295 | P7: =IFERROR( RTD("cqg.rtd",,"StudyData",C7, "PCB","BaseType=Index,Index=1", "Close", "AA",,"all",,,"True","T")/100,"") -> -0.3019813359 | Q7: =IFERROR(RTD("cqg.rtd",,"StudyData",$C7,"MaxAll^",,"Month",$R$3,0,"all",,,,"T")&"/"&RTD("cqg.rtd",,"StudyData",$C7,"MaxAll^",,"Day",$R$3,0,"all",,,,"T")&"/"&RTD("cqg.rtd",,"StudyData",$C7,"MaxAll^",,"Year",$R$3,0,"all",,,,"T"),"") -> 11/22/2021 | R7: =IFERROR(IF(B7="B",TRUNC(RTD("cqg.rtd",,"StudyData",$C7,"MaxAll^",,"Max",$R$3,0,"all",,,,"T"))&"-"&MOD(RTD("cqg.rtd",,"StudyData",$C7,"MaxAll^",,"Max",$R$3,0,"all",,,,"T"),1)*32,TEXT(RTD("cqg.rtd",,"StudyData",$C7,"MaxAll^",,"Max",$R$3,0,"all",,,,"T"),B7)),"") -> 16767.50 | S7: =IFERROR(RTD("cqg.rtd",,"StudyData",$C7,"MinAll^",,"Month",$R$3,0,"all",,,,"T")&"/"&RTD("cqg.rtd",,"StudyData",$C7,"MinAll^",,"Day",$R$3,0,"all",,,,"T")&"/"&RTD("cqg.rtd",,"StudyData",$C7,"MinAll^",,"Year",$R$3,0,"all",,,,"T"),"") -> 10/8/2002 | T7: =IFERROR(IF(B7="B",TRUNC(RTD("cqg.rtd",,"StudyData",$C7,"MinAll^",,"Min",$R$3,0,"all",,,,"T"))&"-"&MOD(RTD("cqg.rtd",,"StudyData",$C7,"MinAll^",,"Min",$R$3,0,"all",,,,"T"),1)*32,TEXT(RTD("cqg.rtd",,"StudyData",$C7,"MinAll^",,"Min",$R$3,0,"all",,,,"T"),B7)),"") -> 797.50 | U7: ENQ?
A8: =IF(LEN(RTD("cqg.rtd",,"ContractData","Tsize("&C8&")","LastQuoteToday",,"T"))-2<0,0,LEN(RTD("cqg.rtd",,"ContractData","Tsize("&C8&")","LastQuoteToday",,"T"))-2) -> 1 | B8: =IF(RTD("cqg.rtd",,"ContractData",C8,"TickSize",,"T")=0.00390625,"B",IF(RTD("cqg.rtd",,"ContractData",C8,"TickSize",,"T")=0.0078125,"B",IF(RTD("cqg.rtd",,"ContractData",C8,"TickSize",,"T")=0.015625,"B",IF(RTD("cqg.rtd",,"ContractData",C8,"TickSize",,"T")=0.03125,"B",VLOOKUP(A8,$A$43:$B$50,2,FALSE))))) -> #.0 | C8: EMD? | D8: =IFERROR(RTD("cqg.rtd", ,"ContractData", $C8, "LongDescription",, "T"),"") -> E-mini MidCap 400, Sep 22 | G8: =IFERROR(IF(B8="B",RTD("cqg.rtd", ,"ContractData",C8, "LastTradeToday",, "B"),TEXT(RTD("cqg.rtd", ,"ContractData",C8, "LastTradeToday",, "T"),B8)),"") -> 2295.9 | H8: =IFERROR(IF(B8="B",RTD("cqg.rtd", ,"ContractData",C8, "NetLastTradeToday",, "B"),TEXT(RTD("cqg.rtd", ,"ContractData",C8, "NetLastTradeToday",, "T"),B8)),"") -> 5.3 | I8: =IFERROR(IF(B8="B",RTD("cqg.rtd", ,"ContractData",C8, "Y_Settlement",, "B"),TEXT(RTD("cqg.rtd", ,"ContractData",C8, "Y_Settlement",, "T"),B8)),"") -> 2290.6 | J8: =IFERROR(IF(B8="B",RTD("cqg.rtd", ,"ContractData",C8, "Open",, "B"),TEXT(RTD("cqg.rtd", ,"ContractData",C8, "Open",, "T"),B8)),"") -> 2298.1 | K8: =IFERROR(IF(B8="B",RTD("cqg.rtd", ,"ContractData",C8, "High",, "B"),TEXT(RTD("cqg.rtd", ,"ContractData",C8, "High",, "T"),B8)),"") -> 2323.3 | L8: =IFERROR(IF(B8="B",RTD("cqg.rtd", ,"ContractData",C8, "Low",, "B"),TEXT(RTD("cqg.rtd", ,"ContractData",C8, "Low",, "T"),B8)),"") -> 2289.4 | M8: =IFERROR(RTD("cqg.rtd", ,"ContractData",C8, "PerCentNetLastTrade",, "T")/100,"") -> 0.002313804243 | N8: =IFERROR( RTD("cqg.rtd",,"StudyData",C8, "PCB","BaseType=Index,Index=1", "Close", "AW",,"all",,,"True","T")/100,"") -> -0.0431756616 | O8: =IFERROR(RTD("cqg.rtd",,"StudyData",C8, "PCB","BaseType=Index,Index=1", "Close", "AM",,"all",,,"True","T")/100,"") -> -0.08559025012 | P8: =IFERROR( RTD("cqg.rtd",,"StudyData",C8, "PCB","BaseType=Index,Index=1", "Close", "AA",,"all",,,"True","T")/100,"") -> -0.1966478883 | Q8: =IFERROR(RTD("cqg.rtd",,"StudyData",$C8,"MaxAll^",,"Month",$R$3,0,"all",,,,"T")&"/"&RTD("cqg.rtd",,"StudyData",$C8,"MaxAll^",,"Day",$R$3,0,"all",,,,"T")&"/"&RTD("cqg.rtd",,"StudyData",$C8,"MaxAll^",,"Year",$R$3,0,"all",,,,"T"),"") -> 11/8/2021 | R8: =IFERROR(IF(B8="B",TRUNC(RTD("cqg.rtd",,"StudyData",$C8,"MaxAll^",,"Max",$R$3,0,"all",,,,"T"))&"-"&MOD(RTD("cqg.rtd",,"StudyData",$C8,"MaxAll^",,"Max",$R$3,0,"all",,,,"T"),1)*32,TEXT(RTD("cqg.rtd",,"StudyData",$C8,"MaxAll^",,"Max",$R$3,0,"all",,,,"T"),B8)),"") -> 2924.2 | S8: =IFERROR(RTD("cqg.rtd",,"StudyData",$C8,"MinAll^",,"Month",$R$3,0,"all",,,,"T")&"/"&RTD("cqg.rtd",,"StudyData",$C8,"MinAll^",,"Day",$R$3,0,"all",,,,"T")&"/"&RTD("cqg.rtd",,"StudyData",$C8,"MinAll^",,"Year",$R$3,0,"all",,,,"T"),"") -> 10/10/2002 | T8: =IFERROR(IF(B8="B",TRUNC(RTD("cqg.rtd",,"StudyData",$C8,"MinAll^",,"Min",$R$3,0,"all",,,,"T"))&"-"&MOD(RTD("cqg.rtd",,"StudyData",$C8,"MinAll^",,"Min",$R$3,0,"all",,,,"T"),1)*32,TEXT(RTD("cqg.rtd",,"StudyData",$C8,"MinAll^",,"Min",$R$3,0,"all",,,,"T"),B8)),"") -> 370.0 | U8: EMD?
A9: =IF(LEN(RTD("cqg.rtd",,"ContractData","Tsize("&C9&")","LastQuoteToday",,"T"))-2<0,0,LEN(RTD("cqg.rtd",,"ContractData","Tsize("&C9&")","LastQuoteToday",,"T"))-2) -> 1 | B9: =IF(RTD("cqg.rtd",,"ContractData",C9,"TickSize",,"T")=0.00390625,"B",IF(RTD("cqg.rtd",,"ContractData",C9,"TickSize",,"T")=0.0078125,"B",IF(RTD("cqg.rtd",,"ContractData",C9,"TickSize",,"T")=0.015625,"B",IF(RTD("cqg.rtd",,"ContractData",C9,"TickSize",,"T")=0.03125,"B",VLOOKUP(A9,$A$43:$B$50,2,FALSE))))) -> #.0 | C9: RTY? | D9: =IFERROR(RTD("cqg.rtd", ,"ContractData", $C9, "LongDescription",, "T"),"") -> E-mini Russell 2000, Sep 22 | G9: =IFERROR(IF(B9="B",RTD("cqg.rtd", ,"ContractData",C9, "LastTradeToday",, "B"),TEXT(RTD("cqg.rtd", ,"ContractData",C9, "LastTradeToday",, "T"),B9)),"") -> 1717.8 | H9: =IFERROR(IF(B9="B",RTD("cqg.rtd", ,"ContractData",C9, "NetLastTradeToday",, "B"),TEXT(RTD("cqg.rtd", ,"ContractData",C9, "NetLastTradeToday",, "T"),B9)),"") -> 2.1 | I9: =IFERROR(IF(B9="B",RTD("cqg.rtd", ,"ContractData",C9, "Y_Settlement",, "B"),TEXT(RTD("cqg.rtd", ,"ContractData",C9, "Y_Settlement",, "T"),B9)),"") -> 1715.7 | J9: =IFERROR(IF(B9="B",RTD("cqg.rtd", ,"ContractData",C9, "Open",, "B"),TEXT(RTD("cqg.rtd", ,"ContractData",C9, "Open",, "T"),B9)),"") -> 1718.5 | K9: =IFERROR(IF(B9="B",RTD("cqg.rtd", ,"ContractData",C9, "High",, "B"),TEXT(RTD("cqg.rtd", ,"ContractData",C9, "High",, "T"),B9)),"") -> 1741.0 | L9: =IFERROR(IF(B9="B",RTD("cqg.rtd", ,"ContractData",C9, "Low",, "B"),TEXT(RTD("cqg.rtd", ,"ContractData",C9, "Low",, "T"),B9)),"") -> 1712.5 | M9: =IFERROR(RTD("cqg.rtd", ,"ContractData",C9, "PerCentNetLastTrade",, "T")/100,"") -> 0.001223990208 | N9: =IFERROR( RTD("cqg.rtd",,"StudyData",C9, "PCB","BaseType=Index,Index=1", "Close", "AW",,"all",,,"True","T")/100,"") -> -0.04598467178 | O9: =IFERROR(RTD("cqg.rtd",,"StudyData",C9, "PCB","BaseType=Index,Index=1", "Close", "AM",,"all",,,"True","T")/100,"") -> -0.07739405983 | P9: =IFERROR( RTD("cqg.rtd",,"StudyData",C9, "PCB","BaseType=Index,Index=1", "Close", "AA",,"all",,,"True","T")/100,"") -> -0.2325768406 | Q9: =IFERROR(RTD("cqg.rtd",,"StudyData",$C9,"MaxAll^",,"Month",$R$3,0,"all",,,,"T")&"/"&RTD("cqg.rtd",,"StudyData",$C9,"MaxAll^",,"Day",$R$3,0,"all",,,,"T")&"/"&RTD("cqg.rtd",,"StudyData",$C9,"MaxAll^",,"Year",$R$3,0,"all",,,,"T"),"") -> 11/8/2021 | R9: =IFERROR(IF(B9="B",TRUNC(RTD("cqg.rtd",,"StudyData",$C9,"MaxAll^",,"Max",$R$3,0,"all",,,,"T"))&"-"&MOD(RTD("cqg.rtd",,"StudyData",$C9,"MaxAll^",,"Max",$R$3,0,"all",,,,"T"),1)*32,TEXT(RTD("cqg.rtd",,"StudyData",$C9,"MaxAll^",,"Max",$R$3,0,"all",,,,"T"),B9)),"") -> 2460.8 | S9: =IFERROR(RTD("cqg.rtd",,"StudyData",$C9,"MinAll^",,"Month",$R$3,0,"all",,,,"T")&"/"&RTD("cqg.rtd",,"StudyData",$C9,"MinAll^",,"Day",$R$3,0,"all",,,,"T")&"/"&RTD("cqg.rtd",,"StudyData",$C9,"MinAll^",,"Year",$R$3,0,"all",,,,"T"),"") -> 3/9/2009 | T9: =IFERROR(IF(B9="B",TRUNC(RTD("cqg.rtd",,"StudyData",$C9,"MinAll^",,"Min",$R$3,0,"all",,,,"T"))&"-"&MOD(RTD("cqg.rtd",,"StudyData",$C9,"MinAll^",,"Min",$R$3,0,"all",,,,"T"),1)*32,TEXT(RTD("cqg.rtd",,"StudyData",$C9,"MinAll^",,"Min",$R$3,0,"all",,,,"T"),B9)),"") -> 341.6 | U9: RTY?
A10: =IF(LEN(RTD("cqg.rtd",,"ContractData","Tsize("&C10&")","LastQuoteToday",,"T"))-2<0,0,LEN(RTD("cqg.rtd",,"ContractData","Tsize("&C10&")","LastQuoteToday",,"T"))-2) -> 0 | B10: =IF(RTD("cqg.rtd",,"ContractData",C10,"TickSize",,"T")=0.00390625,"B",IF(RTD("cqg.rtd",,"ContractData",C10,"TickSize",,"T")=0.0078125,"B",IF(RTD("cqg.rtd",,"ContractData",C10,"TickSize",,"T")=0.015625,"B",IF(RTD("cqg.rtd",,"ContractData",C10,"TickSize",,"T")=0.03125,"B",VLOOKUP(A10,$A$43:$B$50,2,FALSE))))) -> # | C10: DD? | D10: =IFERROR(RTD("cqg.rtd", ,"ContractData", $C10, "LongDescription",, "T"),"") -> DAX Index, Jun 22 | G10: =IFERROR(IF(B10="B",RTD("cqg.rtd", ,"ContractData",C10, "LastTradeToday",, "B"),TEXT(RTD("cqg.rtd", ,"ContractData",C10, "LastTradeToday",, "T"),B10)),"") -> 13379 | H10: =IFERROR(IF(B10="B",RTD("cqg.rtd", ,"ContractData",C10, "NetLastTradeToday",, "B"),TEXT(RTD("cqg.rtd", ,"ContractData",C10, "NetLastTradeToday",, "T"),B10)),"") -> -43 | I10: =IFERROR(IF(B10="B",RTD("cqg.rtd", ,"ContractData",C10, "Y_Settlement",, "B"),TEXT(RTD("cqg.rtd", ,"ContractData",C10, "Y_Settlement",, "T"),B10)),"") -> 13422 | J10: =IFERROR(IF(B10="B",RTD("cqg.rtd", ,"ContractData",C10, "Open",, "B"),TEXT(RTD("cqg.rtd", ,"ContractData",C10, "Open",, "T"),B10)),"") -> 13494 | K10: =IFERROR(IF(B10="B",RTD("cqg.rtd", ,"ContractData",C10, "High",, "B"),TEXT(RTD("cqg.rtd", ,"ContractData",C10, "High",, "T"),B10)),"") -> 13604 | L10: =IFERROR(IF(B10="B",RTD("cqg.rtd", ,"ContractData",C10, "Low",, "B"),TEXT(RTD("cqg.rtd", ,"ContractData",C10, "Low",, "T"),B10)),"") -> 13291 | M10: =IFERROR(RTD("cqg.rtd", ,"ContractData",C10, "PerCentNetLastTrade",, "T")/100,"") -> -0.003203695425 | N10: =IFERROR( RTD("cqg.rtd",,"StudyData",C10, "PCB","BaseType=Index,Index=1", "Close", "AW",,"all",,,"True","T")/100,"") -> -0.02698181818 | O10: =IFERROR(RTD("cqg.rtd",,"StudyData",C10, "PCB","BaseType=Index,Index=1", "Close", "AM",,"all",,,"True","T")/100,"") -> -0.06941642902 | P10: =IFERROR( RTD("cqg.rtd",,"StudyData",C10, "PCB","BaseType=Index,Index=1", "Close", "AA",,"all",,,"True","T")/100,"") -> -0.1581828478 | Q10: =IFERROR(RTD("cqg.rtd",,"StudyData",$C10,"MaxAll^",,"Month",$R$3,0,"all",,,,"T")&"/"&RTD("cqg.rtd",,"StudyData",$C10,"MaxAll^",,"Day",$R$3,0,"all",,,,"T")&"/"&RTD("cqg.rtd",,"StudyData",$C10,"MaxAll^",,"Year",$R$3,0,"all",,,,"T"),"") -> 11/19/2021 | R10: =IFERROR(IF(B10="B",TRUNC(RTD("cqg.rtd",,"StudyData",$C10,"MaxAll^",,"Max",$R$3,0,"all",,,,"T"))&"-"&MOD(RTD("cqg.rtd",,"StudyData",$C10,"MaxAll^",,"Max",$R$3,0,"all",,,,"T"),1)*32,TEXT(RTD("cqg.rtd",,"StudyData",$C10,"MaxAll^",,"Max",$R$3,0,"all",,,,"T"),B10)),"") -> 16295 | S10: =IFERROR(RTD("cqg.rtd",,"StudyData",$C10,"MinAll^",,"Month",$R$3,0,"all",,,,"T")&"/"&RTD("cqg.rtd",,"StudyData",$C10,"MinAll^",,"Day",$R$3,0,"all",,,,"T")&"/"&RTD("cqg.rtd",,"StudyData",$C10,"MinAll^",,"Year",$R$3,0,"all",,,,"T"),"") -> 10/5/1992 | T10: =IFERROR(IF(B10="B",TRUNC(RTD("cqg.rtd",,"StudyData",$C10,"MinAll^",,"Min",$R$3,0,"all",,,,"T"))&"-"&MOD(RTD("cqg.rtd",,"StudyData",$C10,"MinAll^",,"Min",$R$3,0,"all",,,,"T"),1)*32,TEXT(RTD("cqg.rtd",,"StudyData",$C10,"MinAll^",,"Min",$R$3,0,"all",,,,"T"),B10)),"") -> 1407 | U10: DD?
A11: =IF(LEN(RTD("cqg.rtd",,"ContractData","Tsize("&C11&")","LastQuoteToday",,"T"))-2<0,0,LEN(RTD("cqg.rtd",,"ContractData","Tsize("&C11&")","LastQuoteToday",,"T"))-2) -> 0 | B11: =IF(RTD("cqg.rtd",,"ContractData",C11,"TickSize",,"T")=0.00390625,"B",IF(RTD("cqg.rtd",,"ContractData",C11,"TickSize",,"T")=0.0078125,"B",IF(RTD("cqg.rtd",,"ContractData",C11,"TickSize",,"T")=0.015625,"B",IF(RTD("cqg.rtd",,"ContractData",C11,"TickSize",,"T")=0.03125,"B",VLOOKUP(A11,$A$43:$B$50,2,FALSE))))) -> # | C11: DSX? | D11: =IFERROR(RTD("cqg.rtd", ,"ContractData", $C11, "LongDescription",, "T"),"") -> Euro STOXX 50, Jun 22 | G11: =IFERROR(IF(B11="B",RTD("cqg.rtd", ,"ContractData",C11, "LastTradeToday",, "B"),TEXT(RTD("cqg.rtd", ,"ContractData",C11, "LastTradeToday",, "T"),B11)),"") -> 3487 | H11: =IFERROR(IF(B11="B",RTD("cqg.rtd", ,"ContractData",C11, "NetLastTradeToday",, "B"),TEXT(RTD("cqg.rtd", ,"ContractData",C11, "NetLastTradeToday",, "T"),B11)),"") -> -18 | I11: =IFERROR(IF(B11="B",RTD("cqg.rtd", ,"ContractData",C11, "Y_Settlement",, "B"),TEXT(RTD("cqg.rtd", ,"ContractData",C11, "Y_Settlement",, "T"),B11)),"") -> 3505 | J11: =IFERROR(IF(B11="B",RTD("cqg.rtd", ,"ContractData",C11, "Open",, "B"),TEXT(RTD("cqg.rtd", ,"ContractData",C11, "Open",, "T"),B11)),"") -> 3521 | K11: =IFERROR(IF(B11="B",RTD("cqg.rtd", ,"ContractData",C11, "High",, "B"),TEXT(RTD("cqg.rtd", ,"ContractData",C11, "High",, "T"),B11)),"") -> 3549 | L11: =IFERROR(IF(B11="B",RTD("cqg.rtd", ,"ContractData",C11, "Low",, "B"),TEXT(RTD("cqg.rtd", ,"ContractData",C11, "Low",, "T"),B11)),"") -> 3466 | M11: =IFERROR(RTD("cqg.rtd", ,"ContractData",C11, "PerCentNetLastTrade",, "T")/100,"") -> -0.005135520685 | N11: =IFERROR( RTD("cqg.rtd",,"StudyData",C11, "PCB","BaseType=Index,Index=1", "Close", "AW",,"all",,,"True","T")/100,"") -> -0.03004172462 | O11: =IFERROR(RTD("cqg.rtd",,"StudyData",C11, "PCB","BaseType=Index,Index=1", "Close", "AM",,"all",,,"True","T")/100,"") -> -0.07848837209 | P11: =IFERROR( RTD("cqg.rtd",,"StudyData",C11, "PCB","BaseType=Index,Index=1", "Close", "AA",,"all",,,"True","T")/100,"") -> -0.1722255193 | Q11: =IFERROR(RTD("cqg.rtd",,"StudyData",$C11,"MaxAll^",,"Month",$R$3,0,"all",,,,"T")&"/"&RTD("cqg.rtd",,"StudyData",$C11,"MaxAll^",,"Day",$R$3,0,"all",,,,"T")&"/"&RTD("cqg.rtd",,"StudyData",$C11,"MaxAll^",,"Year",$R$3,0,"all",,,,"T"),"") -> 3/7/2000 | R11: =IFERROR(IF(B11="B",TRUNC(RTD("cqg.rtd",,"StudyData",$C11,"MaxAll^",,"Max",$R$3,0,"all",,,,"T"))&"-"&MOD(RTD("cqg.rtd",,"StudyData",$C11,"MaxAll^",,"Max",$R$3,0,"all",,,,"T"),1)*32,TEXT(RTD("cqg.rtd",,"StudyData",$C11,"MaxAll^",,"Max",$R$3,0,"all",,,,"T"),B11)),"") -> 5525 | S11: =IFERROR(RTD("cqg.rtd",,"StudyData",$C11,"MinAll^",,"Month",$R$3,0,"all",,,,"T")&"/"&RTD("cqg.rtd",,"StudyData",$C11,"MinAll^",,"Day",$R$3,0,"all",,,,"T")&"/"&RTD("cqg.rtd",,"StudyData",$C11,"MinAll^",,"Year",$R$3,0,"all",,,,"T"),"") -> 3/9/2009 | T11: =IFERROR(IF(B11="B",TRUNC(RTD("cqg.rtd",,"StudyData",$C11,"MinAll^",,"Min",$R$3,0,"all",,,,"T"))&"-"&MOD(RTD("cqg.rtd",,"StudyData",$C11,"MinAll^",,"Min",$R$3,0,"all",,,,"T"),1)*32,TEXT(RTD("cqg.rtd",,"StudyData",$C11,"MinAll^",,"Min",$R$3,0,"all",,,,"T"),B11)),"") -> 1761 | U11: DSX?
A12: =IF(LEN(RTD("cqg.rtd",,"ContractData","Tsize("&C12&")","LastQuoteToday",,"T"))-2<0,0,LEN(RTD("cqg.rtd",,"ContractData","Tsize("&C12&")","LastQuoteToday",,"T"))-2) -> 1 | B12: =IF(RTD("cqg.rtd",,"ContractData",C12,"TickSize",,"T")=0.00390625,"B",IF(RTD("cqg.rtd",,"ContractData",C12,"TickSize",,"T")=0.0078125,"B",IF(RTD("cqg.rtd",,"ContractData",C12,"TickSize",,"T")=0.015625,"B",IF(RTD("cqg.rtd",,"ContractData",C12,"TickSize",,"T")=0.03125,"B",VLOOKUP(A12,$A$43:$B$50,2,FALSE))))) -> #.0 | C12: QFA? | D12: =IFERROR(RTD("cqg.rtd", ,"ContractData", $C12, "LongDescription",, "T"),"") -> FTSE 100 - Stnd Index, Jun 22 | G12: =IFERROR(IF(B12="B",RTD("cqg.rtd", ,"ContractData",C12, "LastTradeToday",, "B"),TEXT(RTD("cqg.rtd", ,"ContractData",C12, "LastTradeToday",, "T"),B12)),"") -> 7164.5 | H12: =IFERROR(IF(B12="B",RTD("cqg.rtd", ,"ContractData",C12, "NetLastTradeToday",, "B"),TEXT(RTD("cqg.rtd", ,"ContractData",C12, "NetLastTradeToday",, "T"),B12)),"") -> -52.0 | I12: =IFERROR(IF(B12="B",RTD("cqg.rtd", ,"ContractData",C12, "Y_Settlement",, "B"),TEXT(RTD("cqg.rtd", ,"ContractData",C12, "Y_Settlement",, "T"),B12)),"") -> 7216.5 | J12: =IFERROR(IF(B12="B",RTD("cqg.rtd", ,"ContractData",C12, "Open",, "B"),TEXT(RTD("cqg.rtd", ,"ContractData",C12, "Open",, "T"),B12)),"") -> 7227.5 | K12: =IFERROR(IF(B12="B",RTD("cqg.rtd", ,"ContractData",C12, "High",, "B"),TEXT(RTD("cqg.rtd", ,"ContractData",C12, "High",, "T"),B12)),"") -> 7270.5 | L12: =IFERROR(IF(B12="B",RTD("cqg.rtd", ,"ContractData",C12, "Low",, "B"),TEXT(RTD("cqg.rtd", ,"ContractData",C12, "Low",, "T"),B12)),"") -> 7131.0 | M12: =IFERROR(RTD("cqg.rtd", ,"ContractData",C12, "PerCentNetLastTrade",, "T")/100,"") -> -0.007205709139 | N12: =IFERROR( RTD("cqg.rtd",,"StudyData",C12, "PCB","BaseType=Index,Index=1", "Close", "AW",,"all",,,"True","T")/100,"") -> -0.02357751278 | O12: =IFERROR(RTD("cqg.rtd",,"StudyData",C12, "PCB","BaseType=Index,Index=1", "Close", "AM",,"all",,,"True","T")/100,"") -> -0.05487764659 | P12: =IFERROR( RTD("cqg.rtd",,"StudyData",C12, "PCB","BaseType=Index,Index=1", "Close", "AA",,"all",,,"True","T")/100,"") -> -0.0137655723 | Q12: =IFERROR(RTD("cqg.rtd",,"StudyData",$C12,"MaxAll^",,"Month",$R$3,0,"all",,,,"T")&"/"&RTD("cqg.rtd",,"StudyData",$C12,"MaxAll^",,"Day",$R$3,0,"all",,,,"T")&"/"&RTD("cqg.rtd",,"StudyData",$C12,"MaxAll^",,"Year",$R$3,0,"all",,,,"T"),"") -> 5/22/2018 | R12: =IFERROR(IF(B12="B",TRUNC(RTD("cqg.rtd",,"StudyData",$C12,"MaxAll^",,"Max",$R$3,0,"all",,,,"T"))&"-"&MOD(RTD("cqg.rtd",,"StudyData",$C12,"MaxAll^",,"Max",$R$3,0,"all",,,,"T"),1)*32,TEXT(RTD("cqg.rtd",,"StudyData",$C12,"MaxAll^",,"Max",$R$3,0,"all",,,,"T"),B12)),"") -> 7885.5 | S12: =IFERROR(RTD("cqg.rtd",,"StudyData",$C12,"MinAll^",,"Month",$R$3,0,"all",,,,"T")&"/"&RTD("cqg.rtd",,"StudyData",$C12,"MinAll^",,"Day",$R$3,0,"all",,,,"T")&"/"&RTD("cqg.rtd",,"StudyData",$C12,"MinAll^",,"Year",$R$3,0,"all",,,,"T"),"") -> 11/10/1987 | T12: =IFERROR(IF(B12="B",TRUNC(RTD("cqg.rtd",,"StudyData",$C12,"MinAll^",,"Min",$R$3,0,"all",,,,"T"))&"-"&MOD(RTD("cqg.rtd",,"StudyData",$C12,"MinAll^",,"Min",$R$3,0,"all",,,,"T"),1)*32,TEXT(RTD("cqg.rtd",,"StudyData",$C12,"MinAll^",,"Min",$R$3,0,"all",,,,"T"),B12)),"") -> 1510.0 | U12: QFA?
A13: =IF(LEN(RTD("cqg.rtd",,"ContractData","Tsize("&C13&")","LastQuoteToday",,"T"))-2<0,0,LEN(RTD("cqg.rtd",,"ContractData","Tsize("&C13&")","LastQuoteToday",,"T"))-2) -> 1 | B13: =IF(RTD("cqg.rtd",,"ContractData",C13,"TickSize",,"T")=0.00390625,"B",IF(RTD("cqg.rtd",,"ContractData",C13,"TickSize",,"T")=0.0078125,"B",IF(RTD("cqg.rtd",,"ContractData",C13,"TickSize",,"T")=0.015625,"B",IF(RTD("cqg.rtd",,"ContractData",C13,"TickSize",,"T")=0.03125,"B",VLOOKUP(A13,$A$43:$B$50,2,FALSE))))) -> #.0 | C13: PIL? | D13: =IFERROR(RTD("cqg.rtd", ,"ContractData", $C13, "LongDescription",, "T"),"") -> CAC40, Jun 22 | G13: =IFERROR(IF(B13="B",RTD("cqg.rtd", ,"ContractData",C13, "LastTradeToday",, "B"),TEXT(RTD("cqg.rtd", ,"ContractData",C13, "LastTradeToday",, "T"),B13)),"") -> 5969.0 | H13: =IFERROR(IF(B13="B",RTD("cqg.rtd", ,"ContractData",C13, "NetLastTradeToday",, "B"),TEXT(RTD("cqg.rtd", ,"ContractData",C13, "NetLastTradeToday",, "T"),B13)),"") -> -57.5 | I13: =IFERROR(IF(B13="B",RTD("cqg.rtd", ,"ContractData",C13, "Y_Settlement",, "B"),TEXT(RTD("cqg.rtd", ,"ContractData",C13, "Y_Settlement",, "T"),B13)),"") -> 6026.5 | J13: =IFERROR(IF(B13="B",RTD("cqg.rtd", ,"ContractData",C13, "Open",, "B"),TEXT(RTD("cqg.rtd", ,"ContractData",C13, "Open",, "T"),B13)),"") -> 6073.5 | K13: =IFERROR(IF(B13="B",RTD("cqg.rtd", ,"ContractData",C13, "High",, "B"),TEXT(RTD("cqg.rtd", ,"ContractData",C13, "High",, "T"),B13)),"") -> 6091.5 | L13: =IFERROR(IF(B13="B",RTD("cqg.rtd", ,"ContractData",C13, "Low",, "B"),TEXT(RTD("cqg.rtd", ,"ContractData",C13, "Low",, "T"),B13)),"") -> 5932.0 | M13: =IFERROR(RTD("cqg.rtd", ,"ContractData",C13, "PerCentNetLastTrade",, "T")/100,"") -> -0.009541193064 | N13: =IFERROR( RTD("cqg.rtd",,"StudyData",C13, "PCB","BaseType=Index,Index=1", "Close", "AW",,"all",,,"True","T")/100,"") -> -0.03484517746 | O13: =IFERROR(RTD("cqg.rtd",,"StudyData",C13, "PCB","BaseType=Index,Index=1", "Close", "AM",,"all",,,"True","T")/100,"") -> -0.07629216961 | P13: =IFERROR( RTD("cqg.rtd",,"StudyData",C13, "PCB","BaseType=Index,Index=1", "Close", "AA",,"all",,,"True","T")/100,"") -> -0.1461268865 | Q13: =IFERROR(RTD("cqg.rtd",,"StudyData",$C13,"MaxAll^",,"Month",$R$3,0,"all",,,,"T")&"/"&RTD("cqg.rtd",,"StudyData",$C13,"MaxAll^",,"Day",$R$3,0,"all",,,,"T")&"/"&RTD("cqg.rtd",,"StudyData",$C13,"MaxAll^",,"Year",$R$3,0,"all",,,,"T"),"") -> 1/5/2022 | R13: =IFERROR(IF(B13="B",TRUNC(RTD("cqg.rtd",,"StudyData",$C13,"MaxAll^",,"Max",$R$3,0,"all",,,,"T"))&"-"&MOD(RTD("cqg.rtd",,"StudyData",$C13,"MaxAll^",,"Max",$R$3,0,"all",,,,"T"),1)*32,TEXT(RTD("cqg.rtd",,"StudyData",$C13,"MaxAll^",,"Max",$R$3,0,"all",,,,"T"),B13)),"") -> 7381.5 | S13: =IFERROR(RTD("cqg.rtd",,"StudyData",$C13,"MinAll^",,"Month",$R$3,0,"all",,,,"T")&"/"&RTD("cqg.rtd",,"StudyData",$C13,"MinAll^",,"Day",$R$3,0,"all",,,,"T")&"/"&RTD("cqg.rtd",,"StudyData",$C13,"MinAll^",,"Year",$R$3,0,"all",,,,"T"),"") -> 9/5/1988 | T13: =IFERROR(IF(B13="B",TRUNC(RTD("cqg.rtd",,"StudyData",$C13,"MinAll^",,"Min",$R$3,0,"all",,,,"T"))&"-"&MOD(RTD("cqg.rtd",,"StudyData",$C13,"MinAll^",,"Min",$R$3,0,"all",,,,"T"),1)*32,TEXT(RTD("cqg.rtd",,"StudyData",$C13,"MinAll^",,"Min",$R$3,0,"all",,,,"T"),B13)),"") -> 1283.0 | U13: PIL?
A14: =IF(LEN(RTD("cqg.rtd",,"ContractData","Tsize("&C14&")","LastQuoteToday",,"T"))-2<0,0,LEN(RTD("cqg.rtd",,"ContractData","Tsize("&C14&")","LastQuoteToday",,"T"))-2) -> 0 | B14: =IF(RTD("cqg.rtd",,"ContractData",C14,"TickSize",,"T")=0.00390625,"B",IF(RTD("cqg.rtd",,"ContractData",C14,"TickSize",,"T")=0.0078125,"B",IF(RTD("cqg.rtd",,"ContractData",C14,"TickSize",,"T")=0.015625,"B",IF(RTD("cqg.rtd",,"ContractData",C14,"TickSize",,"T")=0.03125,"B",VLOOKUP(A14,$A$43:$B$50,2,FALSE))))) -> # | C14: NKD? | D14: =IFERROR(RTD("cqg.rtd", ,"ContractData", $C14, "LongDescription",, "T"),"") -> Nikkei 225 (Globex), Sep 22 | G14: =IFERROR(IF(B14="B",RTD("cqg.rtd", ,"ContractData",C14, "LastTradeToday",, "B"),TEXT(RTD("cqg.rtd", ,"ContractData",C14, "LastTradeToday",, "T"),B14)),"") -> 26485 | H14: =IFERROR(IF(B14="B",RTD("cqg.rtd", ,"ContractData",C14, "NetLastTradeToday",, "B"),TEXT(RTD("cqg.rtd", ,"ContractData",C14, "NetLastTradeToday",, "T"),B14)),"") -> 35 | I14: =IFERROR(IF(B14="B",RTD("cqg.rtd", ,"ContractData",C14, "Y_Settlement",, "B"),TEXT(RTD("cqg.rtd", ,"ContractData",C14, "Y_Settlement",, "T"),B14)),"") -> 26450 | J14: =IFERROR(IF(B14="B",RTD("cqg.rtd", ,"ContractData",C14, "Open",, "B"),TEXT(RTD("cqg.rtd", ,"ContractData",C14, "Open",, "T"),B14)),"") -> 26500 | K14: =IFERROR(IF(B14="B",RTD("cqg.rtd", ,"ContractData",C14, "High",, "B"),TEXT(RTD("cqg.rtd", ,"ContractData",C14, "High",, "T"),B14)),"") -> 26750 | L14: =IFERROR(IF(B14="B",RTD("cqg.rtd", ,"ContractData",C14, "Low",, "B"),TEXT(RTD("cqg.rtd", ,"ContractData",C14, "Low",, "T"),B14)),"") -> 26365 | M14: =IFERROR(RTD("cqg.rtd", ,"ContractData",C14, "PerCentNetLastTrade",, "T")/100,"") -> 0.001323251418 | N14: =IFERROR( RTD("cqg.rtd",,"StudyData",C14, "PCB","BaseType=Index,Index=1", "Close", "AW",,"all",,,"True","T")/100,"") -> -0.03304125593 | O14: =IFERROR(RTD("cqg.rtd",,"StudyData",C14, "PCB","BaseType=Index,Index=1", "Close", "AM",,"all",,,"True","T")/100,"") -> -0.02628676471 | P14: =IFERROR( RTD("cqg.rtd",,"StudyData",C14, "PCB","BaseType=Index,Index=1", "Close", "AA",,"all",,,"True","T")/100,"") -> -0.06775783175 | Q14: =IFERROR(RTD("cqg.rtd",,"StudyData",$C14,"MaxAll^",,"Month",$R$3,0,"all",,,,"T")&"/"&RTD("cqg.rtd",,"StudyData",$C14,"MaxAll^",,"Day",$R$3,0,"all",,,,"T")&"/"&RTD("cqg.rtd",,"StudyData",$C14,"MaxAll^",,"Year",$R$3,0,"all",,,,"T"),"") -> 2/16/2021 | R14: =IFERROR(IF(B14="B",TRUNC(RTD("cqg.rtd",,"StudyData",$C14,"MaxAll^",,"Max",$R$3,0,"all",,,,"T"))&"-"&MOD(RTD("cqg.rtd",,"StudyData",$C14,"MaxAll^",,"Max",$R$3,0,"all",,,,"T"),1)*32,TEXT(RTD("cqg.rtd",,"StudyData",$C14,"MaxAll^",,"Max",$R$3,0,"all",,,,"T"),B14)),"") -> 30725 | S14: =IFERROR(RTD("cqg.rtd",,"StudyData",$C14,"MinAll^",,"Month",$R$3,0,"all",,,,"T")&"/"&RTD("cqg.rtd",,"StudyData",$C14,"MinAll^",,"Day",$R$3,0,"all",,,,"T")&"/"&RTD("cqg.rtd",,"StudyData",$C14,"MinAll^",,"Year",$R$3,0,"all",,,,"T"),"") -> 3/9/2009 | T14: =IFERROR(IF(B14="B",TRUNC(RTD("cqg.rtd",,"StudyData",$C14,"MinAll^",,"Min",$R$3,0,"all",,,,"T"))&"-"&MOD(RTD("cqg.rtd",,"StudyData",$C14,"MinAll^",,"Min",$R$3,0,"all",,,,"T"),1)*32,TEXT(RTD("cqg.rtd",,"StudyData",$C14,"MinAll^",,"Min",$R$3,0,"all",,,,"T"),B14)),"") -> 6950 | U14: NKD?
A15: =IF(LEN(RTD("cqg.rtd",,"ContractData","Tsize("&C15&")","LastQuoteToday",,"T"))-2<0,0,LEN(RTD("cqg.rtd",,"ContractData","Tsize("&C15&")","LastQuoteToday",,"T"))-2) -> 8 | B15: =IF(RTD("cqg.rtd",,"ContractData",C15,"TickSize",,"T")=0.00390625,"B",IF(RTD("cqg.rtd",,"ContractData",C15,"TickSize",,"T")=0.0078125,"B",IF(RTD("cqg.rtd",,"ContractData",C15,"TickSize",,"T")=0.015625,"B",IF(RTD("cqg.rtd",,"ContractData",C15,"TickSize",,"T")=0.03125,"B",VLOOKUP(A15,$A$43:$B$50,2,FALSE))))) -> B | C15: TUA? | D15: =IFERROR(RTD("cqg.rtd", ,"ContractData", $C15, "LongDescription",, "T"),"") -> 2yr US Treasury Note (Globex), Sep 22 | G15: =IFERROR(IF(B15="B",RTD("cqg.rtd", ,"ContractData",C15, "LastTradeToday",, "B"),TEXT(RTD("cqg.rtd", ,"ContractData",C15, "LastTradeToday",, "T"),B15)),"") -> 103-31'7/8 | H15: =IFERROR(IF(B15="B",RTD("cqg.rtd", ,"ContractData",C15, "NetLastTradeToday",, "B"),TEXT(RTD("cqg.rtd", ,"ContractData",C15, "NetLastTradeToday",, "T"),B15)),"") -> -0-01'3/8 | I15: =IFERROR(IF(B15="B",RTD("cqg.rtd", ,"ContractData",C15, "Y_Settlement",, "B"),TEXT(RTD("cqg.rtd", ,"ContractData",C15, "Y_Settlement",, "T"),B15)),"") -> 104-01'1/4 | J15: =IFERROR(IF(B15="B",RTD("cqg.rtd", ,"ContractData",C15, "Open",, "B"),TEXT(RTD("cqg.rtd", ,"ContractData",C15, "Open",, "T"),B15)),"") -> 103-27'7/8 | K15: =IFERROR(IF(B15="B",RTD("cqg.rtd", ,"ContractData",C15, "High",, "B"),TEXT(RTD("cqg.rtd", ,"ContractData",C15, "High",, "T"),B15)),"") -> 104-06' | L15: =IFERROR(IF(B15="B",RTD("cqg.rtd", ,"ContractData",C15, "Low",, "B"),TEXT(RTD("cqg.rtd", ,"ContractData",C15, "Low",, "T"),B15)),"") -> 103-24'3/4 | M15: =IFERROR(RTD("cqg.rtd", ,"ContractData",C15, "PerCentNetLastTrade",, "T")/100,"") -> -0.0004130059323 | N15: =IFERROR( RTD("cqg.rtd",,"StudyData",C15, "PCB","BaseType=Index,Index=1", "Close", "AW",,"all",,,"True","T")/100,"") -> -0.005082402182 | O15: =IFERROR(RTD("cqg.rtd",,"StudyData",C15, "PCB","BaseType=Index,Index=1", "Close", "AM",,"all",,,"True","T")/100,"") -> -0.01472928463 | P15: =IFERROR( RTD("cqg.rtd",,"StudyData",C15, "PCB","BaseType=Index,Index=1", "Close", "AA",,"all",,,"True","T")/100,"") -> -0.04665902743 | Q15: =IFERROR(RTD("cqg.rtd",,"StudyData",$C15,"MaxAll^",,"Month",$R$3,0,"all",,,,"T")&"/"&RTD("cqg.rtd",,"StudyData",$C15,"MaxAll^",,"Day",$R$3,0,"all",,,,"T")&"/"&RTD("cqg.rtd",,"StudyData",$C15,"MaxAll^",,"Year",$R$3,0,"all",,,,"T"),"") -> 3/16/2020 | R15: =IFERROR(IF(B15="B",TRUNC(RTD("cqg.rtd",,"StudyData",$C15,"MaxAll^",,"Max",$R$3,0,"all",,,,"T"))&"-"&MOD(RTD("cqg.rtd",,"StudyData",$C15,"MaxAll^",,"Max",$R$3,0,"all",,,,"T"),1)*32,TEXT(RTD("cqg.rtd",,"StudyData",$C15,"MaxAll^",,"Max",$R$3,0,"all",,,,"T"),B15)),"") -> 110-19 | S15: =IFERROR(RTD("cqg.rtd",,"StudyData",$C15,"MinAll^",,"Month",$R$3,0,"all",,,,"T")&"/"&RTD("cqg.rtd",,"StudyData",$C15,"MinAll^",,"Day",$R$3,0,"all",,,,"T")&"/"&RTD("cqg.rtd",,"StudyData",$C15,"MinAll^",,"Year",$R$3,0,"all",,,,"T"),"") -> 1/5/1995 | T15: =IFERROR(IF(B15="B",TRUNC(RTD("cqg.rtd",,"StudyData",$C15,"MinAll^",,"Min",$R$3,0,"all",,,,"T"))&"-"&MOD(RTD("cqg.rtd",,"StudyData",$C15,"MinAll^",,"Min",$R$3,0,"all",,,,"T"),1)*32,TEXT(RTD("cqg.rtd",,"StudyData",$C15,"MinAll^",,"Min",$R$3,0,"all",,,,"T"),B15)),"") -> 96-13.5 | U15: TUA?
A16: =IF(LEN(RTD("cqg.rtd",,"ContractData","Tsize("&C16&")","LastQuoteToday",,"T"))-2<0,0,LEN(RTD("cqg.rtd",,"ContractData","Tsize("&C16&")","LastQuoteToday",,"T"))-2) -> 7 | B16: =IF(RTD("cqg.rtd",,"ContractData",C16,"TickSize",,"T")=0.00390625,"B",IF(RTD("cqg.rtd",,"ContractData",C16,"TickSize",,"T")=0.0078125,"B",IF(RTD("cqg.rtd",,"ContractData",C16,"TickSize",,"T")=0.015625,"B",IF(RTD("cqg.rtd",,"ContractData",C16,"TickSize",,"T")=0.03125,"B",VLOOKUP(A16,$A$43:$B$50,2,FALSE))))) -> B | C16: FVA? | D16: =IFERROR(RTD("cqg.rtd", ,"ContractData", $C16, "LongDescription",, "T"),"") -> 5yr US Treasury Notes (Globex), Sep 22 | G16: =IFERROR(IF(B16="B",RTD("cqg.rtd", ,"ContractData",C16, "LastTradeToday",, "B"),TEXT(RTD("cqg.rtd", ,"ContractData",C16, "LastTradeToday",, "T"),B16)),"") -> 109-30'1/4 | H16: =IFERROR(IF(B16="B",RTD("cqg.rtd", ,"ContractData",C16, "NetLastTradeToday",, "B"),TEXT(RTD("cqg.rtd", ,"ContractData",C16, "NetLastTradeToday",, "T"),B16)),"") -> +0-04'+ | I16: =IFERROR(IF(B16="B",RTD("cqg.rtd", ,"ContractData",C16, "Y_Settlement",, "B"),TEXT(RTD("cqg.rtd", ,"ContractData",C16, "Y_Settlement",, "T"),B16)),"") -> 109-25'3/4 | J16: =IFERROR(IF(B16="B",RTD("cqg.rtd", ,"ContractData",C16, "Open",, "B"),TEXT(RTD("cqg.rtd", ,"ContractData",C16, "Open",, "T"),B16)),"") -> 109-23' | K16: =IFERROR(IF(B16="B",RTD("cqg.rtd", ,"ContractData",C16, "High",, "B"),TEXT(RTD("cqg.rtd", ,"ContractData",C16, "High",, "T"),B16)),"") -> 110-13'+ | L16: =IFERROR(IF(B16="B",RTD("cqg.rtd", ,"ContractData",C16, "Low",, "B"),TEXT(RTD("cqg.rtd", ,"ContractData",C16, "Low",, "T"),B16)),"") -> 109-18'1/4 | M16: =IFERROR(RTD("cqg.rtd", ,"ContractData",C16, "PerCentNetLastTrade",, "T")/100,"") -> 0.001280683031 | N16: =IFERROR( RTD("cqg.rtd",,"StudyData",C16, "PCB","BaseType=Index,Index=1", "Close", "AW",,"all",,,"True","T")/100,"") -> -0.0081753471 | O16: =IFERROR(RTD("cqg.rtd",,"StudyData",C16, "PCB","BaseType=Index,Index=1", "Close", "AM",,"all",,,"True","T")/100,"") -> -0.026628856 | P16: =IFERROR( RTD("cqg.rtd",,"StudyData",C16, "PCB","BaseType=Index,Index=1", "Close", "AA",,"all",,,"True","T")/100,"") -> -0.09118501776 | Q16: =IFERROR(RTD("cqg.rtd",,"StudyData",$C16,"MaxAll^",,"Month",$R$3,0,"all",,,,"T")&"/"&RTD("cqg.rtd",,"StudyData",$C16,"MaxAll^",,"Day",$R$3,0,"all",,,,"T")&"/"&RTD("cqg.rtd",,"StudyData",$C16,"MaxAll^",,"Year",$R$3,0,"all",,,,"T"),"") -> 8/5/2020 | R16: =IFERROR(IF(B16="B",TRUNC(RTD("cqg.rtd",,"StudyData",$C16,"MaxAll^",,"Max",$R$3,0,"all",,,,"T"))&"-"&MOD(RTD("cqg.rtd",,"StudyData",$C16,"MaxAll^",,"Max",$R$3,0,"all",,,,"T"),1)*32,TEXT(RTD("cqg.rtd",,"StudyData",$C16,"MaxAll^",,"Max",$R$3,0,"all",,,,"T"),B16)),"") -> 126-7.75 | S16: =IFERROR(RTD("cqg.rtd",,"StudyData",$C16,"MinAll^",,"Month",$R$3,0,"all",,,,"T")&"/"&RTD("cqg.rtd",,"StudyData",$C16,"MinAll^",,"Day",$R$3,0,"all",,,,"T")&"/"&RTD("cqg.rtd",,"StudyData",$C16,"MinAll^",,"Year",$R$3,0,"all",,,,"T"),"") -> 11/30/1994 | T16: =IFERROR(IF(B16="B",TRUNC(RTD("cqg.rtd",,"StudyData",$C16,"MinAll^",,"Min",$R$3,0,"all",,,,"T"))&"-"&MOD(RTD("cqg.rtd",,"StudyData",$C16,"MinAll^",,"Min",$R$3,0,"all",,,,"T"),1)*32,TEXT(RTD("cqg.rtd",,"StudyData",$C16,"MinAll^",,"Min",$R$3,0,"all",,,,"T"),B16)),"") -> 91-30 | U16: FVA?
A17: =IF(LEN(RTD("cqg.rtd",,"ContractData","Tsize("&C17&")","LastQuoteToday",,"T"))-2<0,0,LEN(RTD("cqg.rtd",,"ContractData","Tsize("&C17&")","LastQuoteToday",,"T"))-2) -> 6 | B17: =IF(RTD("cqg.rtd",,"ContractData",C17,"TickSize",,"T")=0.00390625,"B",IF(RTD("cqg.rtd",,"ContractData",C17,"TickSize",,"T")=0.0078125,"B",IF(RTD("cqg.rtd",,"ContractData",C17,"TickSize",,"T")=0.015625,"B",IF(RTD("cqg.rtd",,"ContractData",C17,"TickSize",,"T")=0.03125,"B",VLOOKUP(A17,$A$43:$B$50,2,FALSE))))) -> B | C17: TYA? | D17: =IFERROR(RTD("cqg.rtd", ,"ContractData", $C17, "LongDescription",, "T"),"") -> 10yr US Treasury Notes (Globex), Sep 22 | G17: =IFERROR(IF(B17="B",RTD("cqg.rtd", ,"ContractData",C17, "LastTradeToday",, "B"),TEXT(RTD("cqg.rtd", ,"ContractData",C17, "LastTradeToday",, "T"),B17)),"") -> 115-16' | H17: =IFERROR(IF(B17="B",RTD("cqg.rtd", ,"ContractData",C17, "NetLastTradeToday",, "B"),TEXT(RTD("cqg.rtd", ,"ContractData",C17, "NetLastTradeToday",, "T"),B17)),"") -> +0-07' | I17: =IFERROR(IF(B17="B",RTD("cqg.rtd", ,"ContractData",C17, "Y_Settlement",, "B"),TEXT(RTD("cqg.rtd", ,"ContractData",C17, "Y_Settlement",, "T"),B17)),"") -> 115-09' | J17: =IFERROR(IF(B17="B",RTD("cqg.rtd", ,"ContractData",C17, "Open",, "B"),TEXT(RTD("cqg.rtd", ,"ContractData",C17, "Open",, "T"),B17)),"") -> 115-06' | K17: =IFERROR(IF(B17="B",RTD("cqg.rtd", ,"ContractData",C17, "High",, "B"),TEXT(RTD("cqg.rtd", ,"ContractData",C17, "High",, "T"),B17)),"") -> 116-03' | L17: =IFERROR(IF(B17="B",RTD("cqg.rtd", ,"ContractData",C17, "Low",, "B"),TEXT(RTD("cqg.rtd", ,"ContractData",C17, "Low",, "T"),B17)),"") -> 115-01'+ | M17: =IFERROR(RTD("cqg.rtd", ,"ContractData",C17, "PerCentNetLastTrade",, "T")/100,"") -> 0.001897533207 | N17: =IFERROR( RTD("cqg.rtd",,"StudyData",C17, "PCB","BaseType=Index,Index=1", "Close", "AW",,"all",,,"True","T")/100,"") -> -0.01123595506 | O17: =IFERROR(RTD("cqg.rtd",,"StudyData",C17, "PCB","BaseType=Index,Index=1", "Close", "AM",,"all",,,"True","T")/100,"") -> -0.03309352518 | P17: =IFERROR( RTD("cqg.rtd",,"StudyData",C17, "PCB","BaseType=Index,Index=1", "Close", "AA",,"all",,,"True","T")/100,"") -> -0.1139877742 | Q17: =IFERROR(RTD("cqg.rtd",,"StudyData",$C17,"MaxAll^",,"Month",$R$3,0,"all",,,,"T")&"/"&RTD("cqg.rtd",,"StudyData",$C17,"MaxAll^",,"Day",$R$3,0,"all",,,,"T")&"/"&RTD("cqg.rtd",,"StudyData",$C17,"MaxAll^",,"Year",$R$3,0,"all",,,,"T"),"") -> 3/9/2020 | R17: =IFERROR(IF(B17="B",TRUNC(RTD("cqg.rtd",,"StudyData",$C17,"MaxAll^",,"Max",$R$3,0,"all",,,,"T"))&"-"&MOD(RTD("cqg.rtd",,"StudyData",$C17,"MaxAll^",,"Max",$R$3,0,"all",,,,"T"),1)*32,TEXT(RTD("cqg.rtd",,"StudyData",$C17,"MaxAll^",,"Max",$R$3,0,"all",,,,"T"),B17)),"") -> 140-24 | S17: =IFERROR(RTD("cqg.rtd",,"StudyData",$C17,"MinAll^",,"Month",$R$3,0,"all",,,,"T")&"/"&RTD("cqg.rtd",,"StudyData",$C17,"MinAll^",,"Day",$R$3,0,"all",,,,"T")&"/"&RTD("cqg.rtd",,"StudyData",$C17,"MinAll^",,"Year",$R$3,0,"all",,,,"T"),"") -> 11/7/1994 | T17: =IFERROR(IF(B17="B",TRUNC(RTD("cqg.rtd",,"StudyData",$C17,"MinAll^",,"Min",$R$3,0,"all",,,,"T"))&"-"&MOD(RTD("cqg.rtd",,"StudyData",$C17,"MinAll^",,"Min",$R$3,0,"all",,,,"T"),1)*32,TEXT(RTD("cqg.rtd",,"StudyData",$C17,"MinAll^",,"Min",$R$3,0,"all",,,,"T"),B17)),"") -> 88-10.5 | U17: TYA?
A18: =IF(LEN(RTD("cqg.rtd",,"ContractData","Tsize("&C18&")","LastQuoteToday",,"T"))-2<0,0,LEN(RTD("cqg.rtd",,"ContractData","Tsize("&C18&")","LastQuoteToday",,"T"))-2) -> 5 | B18: =IF(RTD("cqg.rtd",,"ContractData",C18,"TickSize",,"T")=0.00390625,"B",IF(RTD("cqg.rtd",,"ContractData",C18,"TickSize",,"T")=0.0078125,"B",IF(RTD("cqg.rtd",,"ContractData",C18,"TickSize",,"T")=0.015625,"B",IF(RTD("cqg.rtd",,"ContractData",C18,"TickSize",,"T")=0.03125,"B",VLOOKUP(A18,$A$43:$B$50,2,FALSE))))) -> B | C18: USA? | D18: =IFERROR(RTD("cqg.rtd", ,"ContractData", $C18, "LongDescription",, "T"),"") -> 30yr US Treasury Bonds (Globex), Sep 22 | G18: =IFERROR(IF(B18="B",RTD("cqg.rtd", ,"ContractData",C18, "LastTradeToday",, "B"),TEXT(RTD("cqg.rtd", ,"ContractData",C18, "LastTradeToday",, "T"),B18)),"") -> 133-01' | H18: =IFERROR(IF(B18="B",RTD("cqg.rtd", ,"ContractData",C18, "NetLastTradeToday",, "B"),TEXT(RTD("cqg.rtd", ,"ContractData",C18, "NetLastTradeToday",, "T"),B18)),"") -> +0-16' | I18: =IFERROR(IF(B18="B",RTD("cqg.rtd", ,"ContractData",C18, "Y_Settlement",, "B"),TEXT(RTD("cqg.rtd", ,"ContractData",C18, "Y_Settlement",, "T"),B18)),"") -> 132-17' | J18: =IFERROR(IF(B18="B",RTD("cqg.rtd", ,"ContractData",C18, "Open",, "B"),TEXT(RTD("cqg.rtd", ,"ContractData",C18, "Open",, "T"),B18)),"") -> 132-20' | K18: =IFERROR(IF(B18="B",RTD("cqg.rtd", ,"ContractData",C18, "High",, "B"),TEXT(RTD("cqg.rtd", ,"ContractData",C18, "High",, "T"),B18)),"") -> 134-03' | L18: =IFERROR(IF(B18="B",RTD("cqg.rtd", ,"ContractData",C18, "Low",, "B"),TEXT(RTD("cqg.rtd", ,"ContractData",C18, "Low",, "T"),B18)),"") -> 132-12' | M18: =IFERROR(RTD("cqg.rtd", ,"ContractData",C18, "PerCentNetLastTrade",, "T")/100,"") -> 0.003772695119 | N18: =IFERROR( RTD("cqg.rtd",,"StudyData",C18, "PCB","BaseType=Index,Index=1", "Close", "AW",,"all",,,"True","T")/100,"") -> -0.01912442396 | O18: =IFERROR(RTD("cqg.rtd",,"StudyData",C18, "PCB","BaseType=Index,Index=1", "Close", "AM",,"all",,,"True","T")/100,"") -> -0.04594352308 | P18: =IFERROR( RTD("cqg.rtd",,"StudyData",C18, "PCB","BaseType=Index,Index=1", "Close", "AA",,"all",,,"True","T")/100,"") -> -0.1810311658 | Q18: =IFERROR(RTD("cqg.rtd",,"StudyData",$C18,"MaxAll^",,"Month",$R$3,0,"all",,,,"T")&"/"&RTD("cqg.rtd",,"StudyData",$C18,"MaxAll^",,"Day",$R$3,0,"all",,,,"T")&"/"&RTD("cqg.rtd",,"StudyData",$C18,"MaxAll^",,"Year",$R$3,0,"all",,,,"T"),"") -> 3/9/2020 | R18: =IFERROR(IF(B18="B",TRUNC(RTD("cqg.rtd",,"StudyData",$C18,"MaxAll^",,"Max",$R$3,0,"all",,,,"T"))&"-"&MOD(RTD("cqg.rtd",,"StudyData",$C18,"MaxAll^",,"Max",$R$3,0,"all",,,,"T"),1)*32,TEXT(RTD("cqg.rtd",,"StudyData",$C18,"MaxAll^",,"Max",$R$3,0,"all",,,,"T"),B18)),"") -> 191-22 | S18: =IFERROR(RTD("cqg.rtd",,"StudyData",$C18,"MinAll^",,"Month",$R$3,0,"all",,,,"T")&"/"&RTD("cqg.rtd",,"StudyData",$C18,"MinAll^",,"Day",$R$3,0,"all",,,,"T")&"/"&RTD("cqg.rtd",,"StudyData",$C18,"MinAll^",,"Year",$R$3,0,"all",,,,"T"),"") -> 11/7/1994 | T18: =IFERROR(IF(B18="B",TRUNC(RTD("cqg.rtd",,"StudyData",$C18,"MinAll^",,"Min",$R$3,0,"all",,,,"T"))&"-"&MOD(RTD("cqg.rtd",,"StudyData",$C18,"MinAll^",,"Min",$R$3,0,"all",,,,"T"),1)*32,TEXT(RTD("cqg.rtd",,"StudyData",$C18,"MinAll^",,"Min",$R$3,0,"all",,,,"T"),B18)),"") -> 79-21 | U18: USA?
A19: =IF(LEN(RTD("cqg.rtd",,"ContractData","Tsize("&C19&")","LastQuoteToday",,"T"))-2<0,0,LEN(RTD("cqg.rtd",,"ContractData","Tsize("&C19&")","LastQuoteToday",,"T"))-2) -> 2 | B19: =IF(RTD("cqg.rtd",,"ContractData",C19,"TickSize",,"T")=0.00390625,"B",IF(RTD("cqg.rtd",,"ContractData",C19,"TickSize",,"T")=0.0078125,"B",IF(RTD("cqg.rtd",,"ContractData",C19,"TickSize",,"T")=0.015625,"B",IF(RTD("cqg.rtd",,"ContractData",C19,"TickSize",,"T")=0.03125,"B",VLOOKUP(A19,$A$43:$B$50,2,FALSE))))) -> #.00 | C19: DL? | D19: =IFERROR(RTD("cqg.rtd", ,"ContractData", $C19, "LongDescription",, "T"),"") -> Euro BOBL (5yr), Sep 22 | G19: =IFERROR(IF(B19="B",RTD("cqg.rtd", ,"ContractData",C19, "LastTradeToday",, "B"),TEXT(RTD("cqg.rtd", ,"ContractData",C19, "LastTradeToday",, "T"),B19)),"") -> 121.26 | H19: =IFERROR(IF(B19="B",RTD("cqg.rtd", ,"ContractData",C19, "NetLastTradeToday",, "B"),TEXT(RTD("cqg.rtd", ,"ContractData",C19, "NetLastTradeToday",, "T"),B19)),"") -> -.18 | I19: =IFERROR(IF(B19="B",RTD("cqg.rtd", ,"ContractData",C19, "Y_Settlement",, "B"),TEXT(RTD("cqg.rtd", ,"ContractData",C19, "Y_Settlement",, "T"),B19)),"") -> 121.44 | J19: =IFERROR(IF(B19="B",RTD("cqg.rtd", ,"ContractData",C19, "Open",, "B"),TEXT(RTD("cqg.rtd", ,"ContractData",C19, "Open",, "T"),B19)),"") -> 121.28 | K19: =IFERROR(IF(B19="B",RTD("cqg.rtd", ,"ContractData",C19, "High",, "B"),TEXT(RTD("cqg.rtd", ,"ContractData",C19, "High",, "T"),B19)),"") -> 121.66 | L19: =IFERROR(IF(B19="B",RTD("cqg.rtd", ,"ContractData",C19, "Low",, "B"),TEXT(RTD("cqg.rtd", ,"ContractData",C19, "Low",, "T"),B19)),"") -> 121.19 | M19: =IFERROR(RTD("cqg.rtd", ,"ContractData",C19, "PerCentNetLastTrade",, "T")/100,"") -> -0.001482213439 | N19: =IFERROR( RTD("cqg.rtd",,"StudyData",C19, "PCB","BaseType=Index,Index=1", "Close", "AW",,"all",,,"True","T")/100,"") -> -0.01028403526 | O19: =IFERROR(RTD("cqg.rtd",,"StudyData",C19, "PCB","BaseType=Index,Index=1", "Close", "AM",,"all",,,"True","T")/100,"") -> -0.03108270076 | P19: =IFERROR( RTD("cqg.rtd",,"StudyData",C19, "PCB","BaseType=Index,Index=1", "Close", "AA",,"all",,,"True","T")/100,"") -> -0.1085789899 | Q19: =IFERROR(RTD("cqg.rtd",,"StudyData",$C19,"MaxAll^",,"Month",$R$3,0,"all",,,,"T")&"/"&RTD("cqg.rtd",,"StudyData",$C19,"MaxAll^",,"Day",$R$3,0,"all",,,,"T")&"/"&RTD("cqg.rtd",,"StudyData",$C19,"MaxAll^",,"Year",$R$3,0,"all",,,,"T"),"") -> 3/9/2020 | R19: =IFERROR(IF(B19="B",TRUNC(RTD("cqg.rtd",,"StudyData",$C19,"MaxAll^",,"Max",$R$3,0,"all",,,,"T"))&"-"&MOD(RTD("cqg.rtd",,"StudyData",$C19,"MaxAll^",,"Max",$R$3,0,"all",,,,"T"),1)*32,TEXT(RTD("cqg.rtd",,"StudyData",$C19,"MaxAll^",,"Max",$R$3,0,"all",,,,"T"),B19)),"") -> 137.71 | S19: =IFERROR(RTD("cqg.rtd",,"StudyData",$C19,"MinAll^",,"Month",$R$3,0,"all",,,,"T")&"/"&RTD("cqg.rtd",,"StudyData",$C19,"MinAll^",,"Day",$R$3,0,"all",,,,"T")&"/"&RTD("cqg.rtd",,"StudyData",$C19,"MinAll^",,"Year",$R$3,0,"all",,,,"T"),"") -> 11/6/1991 | T19: =IFERROR(IF(B19="B",TRUNC(RTD("cqg.rtd",,"StudyData",$C19,"MinAll^",,"Min",$R$3,0,"all",,,,"T"))&"-"&MOD(RTD("cqg.rtd",,"StudyData",$C19,"MinAll^",,"Min",$R$3,0,"all",,,,"T"),1)*32,TEXT(RTD("cqg.rtd",,"StudyData",$C19,"MinAll^",,"Min",$R$3,0,"all",,,,"T"),B19)),"") -> 90.36 | U19: DL?
A20: =IF(LEN(RTD("cqg.rtd",,"ContractData","Tsize("&C20&")","LastQuoteToday",,"T"))-2<0,0,LEN(RTD("cqg.rtd",,"ContractData","Tsize("&C20&")","LastQuoteToday",,"T"))-2) -> 2 | B20: =IF(RTD("cqg.rtd",,"ContractData",C20,"TickSize",,"T")=0.00390625,"B",IF(RTD("cqg.rtd",,"ContractData",C20,"TickSize",,"T")=0.0078125,"B",IF(RTD("cqg.rtd",,"ContractData",C20,"TickSize",,"T")=0.015625,"B",IF(RTD("cqg.rtd",,"ContractData",C20,"TickSize",,"T")=0.03125,"B",VLOOKUP(A20,$A$43:$B$50,2,FALSE))))) -> #.00 | C20: DB? | D20: =IFERROR(RTD("cqg.rtd", ,"ContractData", $C20, "LongDescription",, "T"),"") -> Euro Bund (10yr), Sep 22 | G20: =IFERROR(IF(B20="B",RTD("cqg.rtd", ,"ContractData",C20, "LastTradeToday",, "B"),TEXT(RTD("cqg.rtd", ,"ContractData",C20, "LastTradeToday",, "T"),B20)),"") -> 144.45 | H20: =IFERROR(IF(B20="B",RTD("cqg.rtd", ,"ContractData",C20, "NetLastTradeToday",, "B"),TEXT(RTD("cqg.rtd", ,"ContractData",C20, "NetLastTradeToday",, "T"),B20)),"") -> -.73 | I20: =IFERROR(IF(B20="B",RTD("cqg.rtd", ,"ContractData",C20, "Y_Settlement",, "B"),TEXT(RTD("cqg.rtd", ,"ContractData",C20, "Y_Settlement",, "T"),B20)),"") -> 145.18 | J20: =IFERROR(IF(B20="B",RTD("cqg.rtd", ,"ContractData",C20, "Open",, "B"),TEXT(RTD("cqg.rtd", ,"ContractData",C20, "Open",, "T"),B20)),"") -> 144.65 | K20: =IFERROR(IF(B20="B",RTD("cqg.rtd", ,"ContractData",C20, "High",, "B"),TEXT(RTD("cqg.rtd", ,"ContractData",C20, "High",, "T"),B20)),"") -> 145.58 | L20: =IFERROR(IF(B20="B",RTD("cqg.rtd", ,"ContractData",C20, "Low",, "B"),TEXT(RTD("cqg.rtd", ,"ContractData",C20, "Low",, "T"),B20)),"") -> 144.36 | M20: =IFERROR(RTD("cqg.rtd", ,"ContractData",C20, "PerCentNetLastTrade",, "T")/100,"") -> -0.005028240805 | N20: =IFERROR( RTD("cqg.rtd",,"StudyData",C20, "PCB","BaseType=Index,Index=1", "Close", "AW",,"all",,,"True","T")/100,"") -> -0.01721322629 | O20: =IFERROR(RTD("cqg.rtd",,"StudyData",C20, "PCB","BaseType=Index,Index=1", "Close", "AM",,"all",,,"True","T")/100,"") -> -0.04829358282 | P20: =IFERROR( RTD("cqg.rtd",,"StudyData",C20, "PCB","BaseType=Index,Index=1", "Close", "AA",,"all",,,"True","T")/100,"") -> -0.1534314013 | Q20: =IFERROR(RTD("cqg.rtd",,"StudyData",$C20,"MaxAll^",,"Month",$R$3,0,"all",,,,"T")&"/"&RTD("cqg.rtd",,"StudyData",$C20,"MaxAll^",,"Day",$R$3,0,"all",,,,"T")&"/"&RTD("cqg.rtd",,"StudyData",$C20,"MaxAll^",,"Year",$R$3,0,"all",,,,"T"),"") -> 9/3/2019 | R20: =IFERROR(IF(B20="B",TRUNC(RTD("cqg.rtd",,"StudyData",$C20,"MaxAll^",,"Max",$R$3,0,"all",,,,"T"))&"-"&MOD(RTD("cqg.rtd",,"StudyData",$C20,"MaxAll^",,"Max",$R$3,0,"all",,,,"T"),1)*32,TEXT(RTD("cqg.rtd",,"StudyData",$C20,"MaxAll^",,"Max",$R$3,0,"all",,,,"T"),B20)),"") -> 179.67 | S20: =IFERROR(RTD("cqg.rtd",,"StudyData",$C20,"MinAll^",,"Month",$R$3,0,"all",,,,"T")&"/"&RTD("cqg.rtd",,"StudyData",$C20,"MinAll^",,"Day",$R$3,0,"all",,,,"T")&"/"&RTD("cqg.rtd",,"StudyData",$C20,"MinAll^",,"Year",$R$3,0,"all",,,,"T"),"") -> 1/16/1991 | T20: =IFERROR(IF(B20="B",TRUNC(RTD("cqg.rtd",,"StudyData",$C20,"MinAll^",,"Min",$R$3,0,"all",,,,"T"))&"-"&MOD(RTD("cqg.rtd",,"StudyData",$C20,"MinAll^",,"Min",$R$3,0,"all",,,,"T"),1)*32,TEXT(RTD("cqg.rtd",,"StudyData",$C20,"MinAll^",,"Min",$R$3,0,"all",,,,"T"),B20)),"") -> 81.50 | U20: DB?
A21: =IF(LEN(RTD("cqg.rtd",,"ContractData","Tsize("&C21&")","LastQuoteToday",,"T"))-2<0,0,LEN(RTD("cqg.rtd",,"ContractData","Tsize("&C21&")","LastQuoteToday",,"T"))-2) -> 2 | B21: =IF(RTD("cqg.rtd",,"ContractData",C21,"TickSize",,"T")=0.00390625,"B",IF(RTD("cqg.rtd",,"ContractData",C21,"TickSize",,"T")=0.0078125,"B",IF(RTD("cqg.rtd",,"ContractData",C21,"TickSize",,"T")=0.015625,"B",IF(RTD("cqg.rtd",,"ContractData",C21,"TickSize",,"T")=0.03125,"B",VLOOKUP(A21,$A$43:$B$50,2,FALSE))))) -> #.00 | C21: FGBX? | D21: =IFERROR(RTD("cqg.rtd", ,"ContractData", $C21, "LongDescription",, "T"),"") -> Euro Buxl (30yr), Sep 22 | G21: =IFERROR(IF(B21="B",RTD("cqg.rtd", ,"ContractData",C21, "LastTradeToday",, "B"),TEXT(RTD("cqg.rtd", ,"ContractData",C21, "LastTradeToday",, "T"),B21)),"") -> 159.26 | H21: =IFERROR(IF(B21="B",RTD("cqg.rtd", ,"ContractData",C21, "NetLastTradeToday",, "B"),TEXT(RTD("cqg.rtd", ,"ContractData",C21, "NetLastTradeToday",, "T"),B21)),"") -> -2.66 | I21: =IFERROR(IF(B21="B",RTD("cqg.rtd", ,"ContractData",C21, "Y_Settlement",, "B"),TEXT(RTD("cqg.rtd", ,"ContractData",C21, "Y_Settlement",, "T"),B21)),"") -> 161.92 | J21: =IFERROR(IF(B21="B",RTD("cqg.rtd", ,"ContractData",C21, "Open",, "B"),TEXT(RTD("cqg.rtd", ,"ContractData",C21, "Open",, "T"),B21)),"") -> 161.28 | K21: =IFERROR(IF(B21="B",RTD("cqg.rtd", ,"ContractData",C21, "High",, "B"),TEXT(RTD("cqg.rtd", ,"ContractData",C21, "High",, "T"),B21)),"") -> 163.20 | L21: =IFERROR(IF(B21="B",RTD("cqg.rtd", ,"ContractData",C21, "Low",, "B"),TEXT(RTD("cqg.rtd", ,"ContractData",C21, "Low",, "T"),B21)),"") -> 159.06 | M21: =IFERROR(RTD("cqg.rtd", ,"ContractData",C21, "PerCentNetLastTrade",, "T")/100,"") -> -0.01642786561 | N21: =IFERROR( RTD("cqg.rtd",,"StudyData",C21, "PCB","BaseType=Index,Index=1", "Close", "AW",,"all",,,"True","T")/100,"") -> -0.02937591419 | O21: =IFERROR(RTD("cqg.rtd",,"StudyData",C21, "PCB","BaseType=Index,Index=1", "Close", "AM",,"all",,,"True","T")/100,"") -> -0.07803635522 | P21: =IFERROR( RTD("cqg.rtd",,"StudyData",C21, "PCB","BaseType=Index,Index=1", "Close", "AA",,"all",,,"True","T")/100,"") -> -0.3067815792 | Q21: =IFERROR(RTD("cqg.rtd",,"StudyData",$C21,"MaxAll^",,"Month",$R$3,0,"all",,,,"T")&"/"&RTD("cqg.rtd",,"StudyData",$C21,"MaxAll^",,"Day",$R$3,0,"all",,,,"T")&"/"&RTD("cqg.rtd",,"StudyData",$C21,"MaxAll^",,"Year",$R$3,0,"all",,,,"T"),"") -> 3/9/2020 | R21: =IFERROR(IF(B21="B",TRUNC(RTD("cqg.rtd",,"StudyData",$C21,"MaxAll^",,"Max",$R$3,0,"all",,,,"T"))&"-"&MOD(RTD("cqg.rtd",,"StudyData",$C21,"MaxAll^",,"Max",$R$3,0,"all",,,,"T"),1)*32,TEXT(RTD("cqg.rtd",,"StudyData",$C21,"MaxAll^",,"Max",$R$3,0,"all",,,,"T"),B21)),"") -> 240.34 | S21: =IFERROR(RTD("cqg.rtd",,"StudyData",$C21,"MinAll^",,"Month",$R$3,0,"all",,,,"T")&"/"&RTD("cqg.rtd",,"StudyData",$C21,"MinAll^",,"Day",$R$3,0,"all",,,,"T")&"/"&RTD("cqg.rtd",,"StudyData",$C21,"MinAll^",,"Year",$R$3,0,"all",,,,"T"),"") -> 7/23/2008 | T21: =IFERROR(IF(B21="B",TRUNC(RTD("cqg.rtd",,"StudyData",$C21,"MinAll^",,"Min",$R$3,0,"all",,,,"T"))&"-"&MOD(RTD("cqg.rtd",,"StudyData",$C21,"MinAll^",,"Min",$R$3,0,"all",,,,"T"),1)*32,TEXT(RTD("cqg.rtd",,"StudyData",$C21,"MinAll^",,"Min",$R$3,0,"all",,,,"T"),B21)),"") -> 85.66 | U21: FGBX?
A22: =IF(LEN(RTD("cqg.rtd",,"ContractData","Tsize("&C22&")","LastQuoteToday",,"T"))-2<0,0,LEN(RTD("cqg.rtd",,"ContractData","Tsize("&C22&")","LastQuoteToday",,"T"))-2) -> 2 | B22: =IF(RTD("cqg.rtd",,"ContractData",C22,"TickSize",,"T")=0.00390625,"B",IF(RTD("cqg.rtd",,"ContractData",C22,"TickSize",,"T")=0.0078125,"B",IF(RTD("cqg.rtd",,"ContractData",C22,"TickSize",,"T")=0.015625,"B",IF(RTD("cqg.rtd",,"ContractData",C22,"TickSize",,"T")=0.03125,"B",VLOOKUP(A22,$A$43:$B$50,2,FALSE))))) -> #.00 | C22: QGA? | D22: =IFERROR(RTD("cqg.rtd", ,"ContractData", $C22, "LongDescription",, "T"),"") -> Long Gilt (CONNECT), Sep 22 | G22: =IFERROR(IF(B22="B",RTD("cqg.rtd", ,"ContractData",C22, "LastTradeToday",, "B"),TEXT(RTD("cqg.rtd", ,"ContractData",C22, "LastTradeToday",, "T"),B22)),"") -> 112.45 | H22: =IFERROR(IF(B22="B",RTD("cqg.rtd", ,"ContractData",C22, "NetLastTradeToday",, "B"),TEXT(RTD("cqg.rtd", ,"ContractData",C22, "NetLastTradeToday",, "T"),B22)),"") -> .33 | I22: =IFERROR(IF(B22="B",RTD("cqg.rtd", ,"ContractData",C22, "Y_Settlement",, "B"),TEXT(RTD("cqg.rtd", ,"ContractData",C22, "Y_Settlement",, "T"),B22)),"") -> 112.12 | J22: =IFERROR(IF(B22="B",RTD("cqg.rtd", ,"ContractData",C22, "Open",, "B"),TEXT(RTD("cqg.rtd", ,"ContractData",C22, "Open",, "T"),B22)),"") -> 112.29 | K22: =IFERROR(IF(B22="B",RTD("cqg.rtd", ,"ContractData",C22, "High",, "B"),TEXT(RTD("cqg.rtd", ,"ContractData",C22, "High",, "T"),B22)),"") -> 112.97 | L22: =IFERROR(IF(B22="B",RTD("cqg.rtd", ,"ContractData",C22, "Low",, "B"),TEXT(RTD("cqg.rtd", ,"ContractData",C22, "Low",, "T"),B22)),"") -> 112.29 | M22: =IFERROR(RTD("cqg.rtd", ,"ContractData",C22, "PerCentNetLastTrade",, "T")/100,"") -> 0.002943275062 | N22: =IFERROR( RTD("cqg.rtd",,"StudyData",C22, "PCB","BaseType=Index,Index=1", "Close", "AW",,"all",,,"True","T")/100,"") -> -0.004955313689 | O22: =IFERROR(RTD("cqg.rtd",,"StudyData",C22, "PCB","BaseType=Index,Index=1", "Close", "AM",,"all",,,"True","T")/100,"") -> -0.03152183274 | P22: =IFERROR( RTD("cqg.rtd",,"StudyData",C22, "PCB","BaseType=Index,Index=1", "Close", "AA",,"all",,,"True","T")/100,"") -> -0.1128205128 | Q22: =IFERROR(RTD("cqg.rtd",,"StudyData",$C22,"MaxAll^",,"Month",$R$3,0,"all",,,,"T")&"/"&RTD("cqg.rtd",,"StudyData",$C22,"MaxAll^",,"Day",$R$3,0,"all",,,,"T")&"/"&RTD("cqg.rtd",,"StudyData",$C22,"MaxAll^",,"Year",$R$3,0,"all",,,,"T"),"") -> 3/9/2020 | R22: =IFERROR(IF(B22="B",TRUNC(RTD("cqg.rtd",,"StudyData",$C22,"MaxAll^",,"Max",$R$3,0,"all",,,,"T"))&"-"&MOD(RTD("cqg.rtd",,"StudyData",$C22,"MaxAll^",,"Max",$R$3,0,"all",,,,"T"),1)*32,TEXT(RTD("cqg.rtd",,"StudyData",$C22,"MaxAll^",,"Max",$R$3,0,"all",,,,"T"),B22)),"") -> 139.84 | S22: =IFERROR(RTD("cqg.rtd",,"StudyData",$C22,"MinAll^",,"Month",$R$3,0,"all",,,,"T")&"/"&RTD("cqg.rtd",,"StudyData",$C22,"MinAll^",,"Day",$R$3,0,"all",,,,"T")&"/"&RTD("cqg.rtd",,"StudyData",$C22,"MinAll^",,"Year",$R$3,0,"all",,,,"T"),"") -> 1/12/1987 | T22: =IFERROR(IF(B22="B",TRUNC(RTD("cqg.rtd",,"StudyData",$C22,"MinAll^",,"Min",$R$3,0,"all",,,,"T"))&"-"&MOD(RTD("cqg.rtd",,"StudyData",$C22,"MinAll^",,"Min",$R$3,0,"all",,,,"T"),1)*32,TEXT(RTD("cqg.rtd",,"StudyData",$C22,"MinAll^",,"Min",$R$3,0,"all",,,,"T"),B22)),"") -> 13.41 | U22: QGA?
A23: =IF(LEN(RTD("cqg.rtd",,"ContractData","Tsize("&C23&")","LastQuoteToday",,"T"))-2<0,0,LEN(RTD("cqg.rtd",,"ContractData","Tsize("&C23&")","LastQuoteToday",,"T"))-2) -> 1 | B23: =IF(RTD("cqg.rtd",,"ContractData",C23,"TickSize",,"T")=0.00390625,"B",IF(RTD("cqg.rtd",,"ContractData",C23,"TickSize",,"T")=0.0078125,"B",IF(RTD("cqg.rtd",,"ContractData",C23,"TickSize",,"T")=0.015625,"B",IF(RTD("cqg.rtd",,"ContractData",C23,"TickSize",,"T")=0.03125,"B",VLOOKUP(A23,$A$43:$B$50,2,FALSE))))) -> #.0 | C23: GCE? | D23: =IFERROR(RTD("cqg.rtd", ,"ContractData", $C23, "LongDescription",, "T"),"") -> Gold (Globex), Aug 22 | G23: =IFERROR(IF(B23="B",RTD("cqg.rtd", ,"ContractData",C23, "LastTradeToday",, "B"),TEXT(RTD("cqg.rtd", ,"ContractData",C23, "LastTradeToday",, "T"),B23)),"") -> 1820.6 | H23: =IFERROR(IF(B23="B",RTD("cqg.rtd", ,"ContractData",C23, "NetLastTradeToday",, "B"),TEXT(RTD("cqg.rtd", ,"ContractData",C23, "NetLastTradeToday",, "T"),B23)),"") -> -11.2 | I23: =IFERROR(IF(B23="B",RTD("cqg.rtd", ,"ContractData",C23, "Y_Settlement",, "B"),TEXT(RTD("cqg.rtd", ,"ContractData",C23, "Y_Settlement",, "T"),B23)),"") -> 1831.8 | J23: =IFERROR(IF(B23="B",RTD("cqg.rtd", ,"ContractData",C23, "Open",, "B"),TEXT(RTD("cqg.rtd", ,"ContractData",C23, "Open",, "T"),B23)),"") -> 1820.9 | K23: =IFERROR(IF(B23="B",RTD("cqg.rtd", ,"ContractData",C23, "High",, "B"),TEXT(RTD("cqg.rtd", ,"ContractData",C23, "High",, "T"),B23)),"") -> 1833.3 | L23: =IFERROR(IF(B23="B",RTD("cqg.rtd", ,"ContractData",C23, "Low",, "B"),TEXT(RTD("cqg.rtd", ,"ContractData",C23, "Low",, "T"),B23)),"") -> 1809.2 | M23: =IFERROR(RTD("cqg.rtd", ,"ContractData",C23, "PerCentNetLastTrade",, "T")/100,"") -> -0.006114204607 | N23: =IFERROR( RTD("cqg.rtd",,"StudyData",C23, "PCB","BaseType=Index,Index=1", "Close", "AW",,"all",,,"True","T")/100,"") -> -0.02927219408 | O23: =IFERROR(RTD("cqg.rtd",,"StudyData",C23, "PCB","BaseType=Index,Index=1", "Close", "AM",,"all",,,"True","T")/100,"") -> -0.01504003462 | P23: =IFERROR( RTD("cqg.rtd",,"StudyData",C23, "PCB","BaseType=Index,Index=1", "Close", "AA",,"all",,,"True","T")/100,"") -> -0.008333787243 | Q23: =IFERROR(RTD("cqg.rtd",,"StudyData",$C23,"MaxAll^",,"Month",$R$3,0,"all",,,,"T")&"/"&RTD("cqg.rtd",,"StudyData",$C23,"MaxAll^",,"Day",$R$3,0,"all",,,,"T")&"/"&RTD("cqg.rtd",,"StudyData",$C23,"MaxAll^",,"Year",$R$3,0,"all",,,,"T"),"") -> 8/7/2020 | R23: =IFERROR(IF(B23="B",TRUNC(RTD("cqg.rtd",,"StudyData",$C23,"MaxAll^",,"Max",$R$3,0,"all",,,,"T"))&"-"&MOD(RTD("cqg.rtd",,"StudyData",$C23,"MaxAll^",,"Max",$R$3,0,"all",,,,"T"),1)*32,TEXT(RTD("cqg.rtd",,"StudyData",$C23,"MaxAll^",,"Max",$R$3,0,"all",,,,"T"),B23)),"") -> 2089.2 | S23: =IFERROR(RTD("cqg.rtd",,"StudyData",$C23,"MinAll^",,"Month",$R$3,0,"all",,,,"T")&"/"&RTD("cqg.rtd",,"StudyData",$C23,"MinAll^",,"Day",$R$3,0,"all",,,,"T")&"/"&RTD("cqg.rtd",,"StudyData",$C23,"MinAll^",,"Year",$R$3,0,"all",,,,"T"),"") -> 8/25/1976 | T23: =IFERROR(IF(B23="B",TRUNC(RTD("cqg.rtd",,"StudyData",$C23,"MinAll^",,"Min",$R$3,0,"all",,,,"T"))&"-"&MOD(RTD("cqg.rtd",,"StudyData",$C23,"MinAll^",,"Min",$R$3,0,"all",,,,"T"),1)*32,TEXT(RTD("cqg.rtd",,"StudyData",$C23,"MinAll^",,"Min",$R$3,0,"all",,,,"T"),B23)),"") -> 100.0 | U23: GCE?
A24: =IF(LEN(RTD("cqg.rtd",,"ContractData","Tsize("&C24&")","LastQuoteToday",,"T"))-2<0,0,LEN(RTD("cqg.rtd",,"ContractData","Tsize("&C24&")","LastQuoteToday",,"T"))-2) -> 3 | B24: =IF(RTD("cqg.rtd",,"ContractData",C24,"TickSize",,"T")=0.00390625,"B",IF(RTD("cqg.rtd",,"ContractData",C24,"TickSize",,"T")=0.0078125,"B",IF(RTD("cqg.rtd",,"ContractData",C24,"TickSize",,"T")=0.015625,"B",IF(RTD("cqg.rtd",,"ContractData",C24,"TickSize",,"T")=0.03125,"B",VLOOKUP(A24,$A$43:$B$50,2,FALSE))))) -> #.000 | C24: SIE? | D24: =IFERROR(RTD("cqg.rtd", ,"ContractData", $C24, "LongDescription",, "T"),"") -> Silver (Globex), Jul 22 | G24: =IFERROR(IF(B24="B",RTD("cqg.rtd", ,"ContractData",C24, "LastTradeToday",, "B"),TEXT(RTD("cqg.rtd", ,"ContractData",C24, "LastTradeToday",, "T"),B24)),"") -> 21.105 | H24: =IFERROR(IF(B24="B",RTD("cqg.rtd", ,"ContractData",C24, "NetLastTradeToday",, "B"),TEXT(RTD("cqg.rtd", ,"ContractData",C24, "NetLastTradeToday",, "T"),B24)),"") -> -.150 | I24: =IFERROR(IF(B24="B",RTD("cqg.rtd", ,"ContractData",C24, "Y_Settlement",, "B"),TEXT(RTD("cqg.rtd", ,"ContractData",C24, "Y_Settlement",, "T"),B24)),"") -> 21.255 | J24: =IFERROR(IF(B24="B",RTD("cqg.rtd", ,"ContractData",C24, "Open",, "B"),TEXT(RTD("cqg.rtd", ,"ContractData",C24, "Open",, "T"),B24)),"") -> 21.070 | K24: =IFERROR(IF(B24="B",RTD("cqg.rtd", ,"ContractData",C24, "High",, "B"),TEXT(RTD("cqg.rtd", ,"ContractData",C24, "High",, "T"),B24)),"") -> 21.360 | L24: =IFERROR(IF(B24="B",RTD("cqg.rtd", ,"ContractData",C24, "Low",, "B"),TEXT(RTD("cqg.rtd", ,"ContractData",C24, "Low",, "T"),B24)),"") -> 20.995 | M24: =IFERROR(RTD("cqg.rtd", ,"ContractData",C24, "PerCentNetLastTrade",, "T")/100,"") -> -0.00705716302 | N24: =IFERROR( RTD("cqg.rtd",,"StudyData",C24, "PCB","BaseType=Index,Index=1", "Close", "AW",,"all",,,"True","T")/100,"") -> -0.03766358123 | O24: =IFERROR(RTD("cqg.rtd",,"StudyData",C24, "PCB","BaseType=Index,Index=1", "Close", "AM",,"all",,,"True","T")/100,"") -> -0.02688122464 | P24: =IFERROR( RTD("cqg.rtd",,"StudyData",C24, "PCB","BaseType=Index,Index=1", "Close", "AA",,"all",,,"True","T")/100,"") -> -0.09861621252 | Q24: =IFERROR(RTD("cqg.rtd",,"StudyData",$C24,"MaxAll^",,"Month",$R$3,0,"all",,,,"T")&"/"&RTD("cqg.rtd",,"StudyData",$C24,"MaxAll^",,"Day",$R$3,0,"all",,,,"T")&"/"&RTD("cqg.rtd",,"StudyData",$C24,"MaxAll^",,"Year",$R$3,0,"all",,,,"T"),"") -> 4/25/2011 | R24: =IFERROR(IF(B24="B",TRUNC(RTD("cqg.rtd",,"StudyData",$C24,"MaxAll^",,"Max",$R$3,0,"all",,,,"T"))&"-"&MOD(RTD("cqg.rtd",,"StudyData",$C24,"MaxAll^",,"Max",$R$3,0,"all",,,,"T"),1)*32,TEXT(RTD("cqg.rtd",,"StudyData",$C24,"MaxAll^",,"Max",$R$3,0,"all",,,,"T"),B24)),"") -> 49.820 | S24: =IFERROR(RTD("cqg.rtd",,"StudyData",$C24,"MinAll^",,"Month",$R$3,0,"all",,,,"T")&"/"&RTD("cqg.rtd",,"StudyData",$C24,"MinAll^",,"Day",$R$3,0,"all",,,,"T")&"/"&RTD("cqg.rtd",,"StudyData",$C24,"MinAll^",,"Year",$R$3,0,"all",,,,"T"),"") -> 11/3/1971 | T24: =IFERROR(IF(B24="B",TRUNC(RTD("cqg.rtd",,"StudyData",$C24,"MinAll^",,"Min",$R$3,0,"all",,,,"T"))&"-"&MOD(RTD("cqg.rtd",,"StudyData",$C24,"MinAll^",,"Min",$R$3,0,"all",,,,"T"),1)*32,TEXT(RTD("cqg.rtd",,"StudyData",$C24,"MinAll^",,"Min",$R$3,0,"all",,,,"T"),B24)),"") -> 1.375 | U24: SIE?
A25: =IF(LEN(RTD("cqg.rtd",,"ContractData","Tsize("&C25&")","LastQuoteToday",,"T"))-2<0,0,LEN(RTD("cqg.rtd",,"ContractData","Tsize("&C25&")","LastQuoteToday",,"T"))-2) -> 1 | B25: =IF(RTD("cqg.rtd",,"ContractData",C25,"TickSize",,"T")=0.00390625,"B",IF(RTD("cqg.rtd",,"ContractData",C25,"TickSize",,"T")=0.0078125,"B",IF(RTD("cqg.rtd",,"ContractData",C25,"TickSize",,"T")=0.015625,"B",IF(RTD("cqg.rtd",,"ContractData",C25,"TickSize",,"T")=0.03125,"B",VLOOKUP(A25,$A$43:$B$50,2,FALSE))))) -> #.0 | C25: PLE? | D25: =IFERROR(RTD("cqg.rtd", ,"ContractData", $C25, "LongDescription",, "T"),"") -> Platinum (Globex), Jul 22 | G25: =IFERROR(IF(B25="B",RTD("cqg.rtd", ,"ContractData",C25, "LastTradeToday",, "B"),TEXT(RTD("cqg.rtd", ,"ContractData",C25, "LastTradeToday",, "T"),B25)),"") -> 924.2 | H25: =IFERROR(IF(B25="B",RTD("cqg.rtd", ,"ContractData",C25, "NetLastTradeToday",, "B"),TEXT(RTD("cqg.rtd", ,"ContractData",C25, "NetLastTradeToday",, "T"),B25)),"") -> -8.1 | I25: =IFERROR(IF(B25="B",RTD("cqg.rtd", ,"ContractData",C25, "Y_Settlement",, "B"),TEXT(RTD("cqg.rtd", ,"ContractData",C25, "Y_Settlement",, "T"),B25)),"") -> 932.3 | J25: =IFERROR(IF(B25="B",RTD("cqg.rtd", ,"ContractData",C25, "Open",, "B"),TEXT(RTD("cqg.rtd", ,"ContractData",C25, "Open",, "T"),B25)),"") -> 925.4 | K25: =IFERROR(IF(B25="B",RTD("cqg.rtd", ,"ContractData",C25, "High",, "B"),TEXT(RTD("cqg.rtd", ,"ContractData",C25, "High",, "T"),B25)),"") -> 939.3 | L25: =IFERROR(IF(B25="B",RTD("cqg.rtd", ,"ContractData",C25, "Low",, "B"),TEXT(RTD("cqg.rtd", ,"ContractData",C25, "Low",, "T"),B25)),"") -> 920.2 | M25: =IFERROR(RTD("cqg.rtd", ,"ContractData",C25, "PerCentNetLastTrade",, "T")/100,"") -> -0.008688190497 | N25: =IFERROR( RTD("cqg.rtd",,"StudyData",C25, "PCB","BaseType=Index,Index=1", "Close", "AW",,"all",,,"True","T")/100,"") -> -0.04819773429 | O25: =IFERROR(RTD("cqg.rtd",,"StudyData",C25, "PCB","BaseType=Index,Index=1", "Close", "AM",,"all",,,"True","T")/100,"") -> -0.04554373645 | P25: =IFERROR( RTD("cqg.rtd",,"StudyData",C25, "PCB","BaseType=Index,Index=1", "Close", "AA",,"all",,,"True","T")/100,"") -> -0.04386509414 | Q25: =IFERROR(RTD("cqg.rtd",,"StudyData",$C25,"MaxAll^",,"Month",$R$3,0,"all",,,,"T")&"/"&RTD("cqg.rtd",,"StudyData",$C25,"MaxAll^",,"Day",$R$3,0,"all",,,,"T")&"/"&RTD("cqg.rtd",,"StudyData",$C25,"MaxAll^",,"Year",$R$3,0,"all",,,,"T"),"") -> 3/4/2008 | R25: =IFERROR(IF(B25="B",TRUNC(RTD("cqg.rtd",,"StudyData",$C25,"MaxAll^",,"Max",$R$3,0,"all",,,,"T"))&"-"&MOD(RTD("cqg.rtd",,"StudyData",$C25,"MaxAll^",,"Max",$R$3,0,"all",,,,"T"),1)*32,TEXT(RTD("cqg.rtd",,"StudyData",$C25,"MaxAll^",,"Max",$R$3,0,"all",,,,"T"),B25)),"") -> 2308.8 | S25: =IFERROR(RTD("cqg.rtd",,"StudyData",$C25,"MinAll^",,"Month",$R$3,0,"all",,,,"T")&"/"&RTD("cqg.rtd",,"StudyData",$C25,"MinAll^",,"Day",$R$3,0,"all",,,,"T")&"/"&RTD("cqg.rtd",,"StudyData",$C25,"MinAll^",,"Year",$R$3,0,"all",,,,"T"),"") -> 10/30/1972 | T25: =IFERROR(IF(B25="B",TRUNC(RTD("cqg.rtd",,"StudyData",$C25,"MinAll^",,"Min",$R$3,0,"all",,,,"T"))&"-"&MOD(RTD("cqg.rtd",,"StudyData",$C25,"MinAll^",,"Min",$R$3,0,"all",,,,"T"),1)*32,TEXT(RTD("cqg.rtd",,"StudyData",$C25,"MinAll^",,"Min",$R$3,0,"all",,,,"T"),B25)),"") -> 126.0 | U25: PLE?
A26: =IF(LEN(RTD("cqg.rtd",,"ContractData","Tsize("&C26&")","LastQuoteToday",,"T"))-2<0,0,LEN(RTD("cqg.rtd",,"ContractData","Tsize("&C26&")","LastQuoteToday",,"T"))-2) -> 2 | B26: =IF(RTD("cqg.rtd",,"ContractData",C26,"TickSize",,"T")=0.00390625,"B",IF(RTD("cqg.rtd",,"ContractData",C26,"TickSize",,"T")=0.0078125,"B",IF(RTD("cqg.rtd",,"ContractData",C26,"TickSize",,"T")=0.015625,"B",IF(RTD("cqg.rtd",,"ContractData",C26,"TickSize",,"T")=0.03125,"B",VLOOKUP(A26,$A$43:$B$50,2,FALSE))))) -> #.00 | C26: CLE? | D26: =IFERROR(RTD("cqg.rtd", ,"ContractData", $C26, "LongDescription",, "T"),"") -> Crude Light (Globex), Jul 22 | G26: =IFERROR(IF(B26="B",RTD("cqg.rtd", ,"ContractData",C26, "LastTradeToday",, "B"),TEXT(RTD("cqg.rtd", ,"ContractData",C26, "LastTradeToday",, "T"),B26)),"") -> 121.75 | H26: =IFERROR(IF(B26="B",RTD("cqg.rtd", ,"ContractData",C26, "NetLastTradeToday",, "B"),TEXT(RTD("cqg.rtd", ,"ContractData",C26, "NetLastTradeToday",, "T"),B26)),"") -> .82 | I26: =IFERROR(IF(B26="B",RTD("cqg.rtd", ,"ContractData",C26, "Y_Settlement",, "B"),TEXT(RTD("cqg.rtd", ,"ContractData",C26, "Y_Settlement",, "T"),B26)),"") -> 120.93 | J26: =IFERROR(IF(B26="B",RTD("cqg.rtd", ,"ContractData",C26, "Open",, "B"),TEXT(RTD("cqg.rtd", ,"ContractData",C26, "Open",, "T"),B26)),"") -> 121.09 | K26: =IFERROR(IF(B26="B",RTD("cqg.rtd", ,"ContractData",C26, "High",, "B"),TEXT(RTD("cqg.rtd", ,"ContractData",C26, "High",, "T"),B26)),"") -> 122.37 | L26: =IFERROR(IF(B26="B",RTD("cqg.rtd", ,"ContractData",C26, "Low",, "B"),TEXT(RTD("cqg.rtd", ,"ContractData",C26, "Low",, "T"),B26)),"") -> 120.38 | M26: =IFERROR(RTD("cqg.rtd", ,"ContractData",C26, "PerCentNetLastTrade",, "T")/100,"") -> 0.006780782271 | N26: =IFERROR( RTD("cqg.rtd",,"StudyData",C26, "PCB","BaseType=Index,Index=1", "Close", "AW",,"all",,,"True","T")/100,"") -> 0.008950029005 | O26: =IFERROR(RTD("cqg.rtd",,"StudyData",C26, "PCB","BaseType=Index,Index=1", "Close", "AM",,"all",,,"True","T")/100,"") -> 0.06174239121 | P26: =IFERROR( RTD("cqg.rtd",,"StudyData",C26, "PCB","BaseType=Index,Index=1", "Close", "AA",,"all",,,"True","T")/100,"") -> 0.672849684 | Q26: =IFERROR(RTD("cqg.rtd",,"StudyData",$C26,"MaxAll^",,"Month",$R$3,0,"all",,,,"T")&"/"&RTD("cqg.rtd",,"StudyData",$C26,"MaxAll^",,"Day",$R$3,0,"all",,,,"T")&"/"&RTD("cqg.rtd",,"StudyData",$C26,"MaxAll^",,"Year",$R$3,0,"all",,,,"T"),"") -> 7/11/2008 | R26: =IFERROR(IF(B26="B",TRUNC(RTD("cqg.rtd",,"StudyData",$C26,"MaxAll^",,"Max",$R$3,0,"all",,,,"T"))&"-"&MOD(RTD("cqg.rtd",,"StudyData",$C26,"MaxAll^",,"Max",$R$3,0,"all",,,,"T"),1)*32,TEXT(RTD("cqg.rtd",,"StudyData",$C26,"MaxAll^",,"Max",$R$3,0,"all",,,,"T"),B26)),"") -> 147.27 | S26: =IFERROR(RTD("cqg.rtd",,"StudyData",$C26,"MinAll^",,"Month",$R$3,0,"all",,,,"T")&"/"&RTD("cqg.rtd",,"StudyData",$C26,"MinAll^",,"Day",$R$3,0,"all",,,,"T")&"/"&RTD("cqg.rtd",,"StudyData",$C26,"MinAll^",,"Year",$R$3,0,"all",,,,"T"),"") -> 4/21/2020 | T26: =IFERROR(IF(B26="B",TRUNC(RTD("cqg.rtd",,"StudyData",$C26,"MinAll^",,"Min",$R$3,0,"all",,,,"T"))&"-"&MOD(RTD("cqg.rtd",,"StudyData",$C26,"MinAll^",,"Min",$R$3,0,"all",,,,"T"),1)*32,TEXT(RTD("cqg.rtd",,"StudyData",$C26,"MinAll^",,"Min",$R$3,0,"all",,,,"T"),B26)),"") -> 6.50 | U26: CLE?
A27: =IF(LEN(RTD("cqg.rtd",,"ContractData","Tsize("&C27&")","LastQuoteToday",,"T"))-2<0,0,LEN(RTD("cqg.rtd",,"ContractData","Tsize("&C27&")","LastQuoteToday",,"T"))-2) -> 4 | B27: =IF(RTD("cqg.rtd",,"ContractData",C27,"TickSize",,"T")=0.00390625,"B",IF(RTD("cqg.rtd",,"ContractData",C27,"TickSize",,"T")=0.0078125,"B",IF(RTD("cqg.rtd",,"ContractData",C27,"TickSize",,"T")=0.015625,"B",IF(RTD("cqg.rtd",,"ContractData",C27,"TickSize",,"T")=0.03125,"B",VLOOKUP(A27,$A$43:$B$50,2,FALSE))))) -> #.0000 | C27: HOE? | D27: =IFERROR(RTD("cqg.rtd", ,"ContractData", $C27, "LongDescription",, "T"),"") -> NY Harbor ULSD, Jul 22 | G27: =IFERROR(IF(B27="B",RTD("cqg.rtd", ,"ContractData",C27, "LastTradeToday",, "B"),TEXT(RTD("cqg.rtd", ,"ContractData",C27, "LastTradeToday",, "T"),B27)),"") -> 4.3367 | H27: =IFERROR(IF(B27="B",RTD("cqg.rtd", ,"ContractData",C27, "NetLastTradeToday",, "B"),TEXT(RTD("cqg.rtd", ,"ContractData",C27, "NetLastTradeToday",, "T"),B27)),"") -> .0533 | I27: =IFERROR(IF(B27="B",RTD("cqg.rtd", ,"ContractData",C27, "Y_Settlement",, "B"),TEXT(RTD("cqg.rtd", ,"ContractData",C27, "Y_Settlement",, "T"),B27)),"") -> 4.2834 | J27: =IFERROR(IF(B27="B",RTD("cqg.rtd", ,"ContractData",C27, "Open",, "B"),TEXT(RTD("cqg.rtd", ,"ContractData",C27, "Open",, "T"),B27)),"") -> 4.2749 | K27: =IFERROR(IF(B27="B",RTD("cqg.rtd", ,"ContractData",C27, "High",, "B"),TEXT(RTD("cqg.rtd", ,"ContractData",C27, "High",, "T"),B27)),"") -> 4.3511 | L27: =IFERROR(IF(B27="B",RTD("cqg.rtd", ,"ContractData",C27, "Low",, "B"),TEXT(RTD("cqg.rtd", ,"ContractData",C27, "Low",, "T"),B27)),"") -> 4.2488 | M27: =IFERROR(RTD("cqg.rtd", ,"ContractData",C27, "PerCentNetLastTrade",, "T")/100,"") -> 0.0124433861 | N27: =IFERROR( RTD("cqg.rtd",,"StudyData",C27, "PCB","BaseType=Index,Index=1", "Close", "AW",,"all",,,"True","T")/100,"") -> -0.006870176564 | O27: =IFERROR(RTD("cqg.rtd",,"StudyData",C27, "PCB","BaseType=Index,Index=1", "Close", "AM",,"all",,,"True","T")/100,"") -> 0.1020838628 | P27: =IFERROR( RTD("cqg.rtd",,"StudyData",C27, "PCB","BaseType=Index,Index=1", "Close", "AA",,"all",,,"True","T")/100,"") -> 0.9257959945 | Q27: =IFERROR(RTD("cqg.rtd",,"StudyData",$C27,"MaxAll^",,"Month",$R$3,0,"all",,,,"T")&"/"&RTD("cqg.rtd",,"StudyData",$C27,"MaxAll^",,"Day",$R$3,0,"all",,,,"T")&"/"&RTD("cqg.rtd",,"StudyData",$C27,"MaxAll^",,"Year",$R$3,0,"all",,,,"T"),"") -> 3/9/2022 | R27: =IFERROR(IF(B27="B",TRUNC(RTD("cqg.rtd",,"StudyData",$C27,"MaxAll^",,"Max",$R$3,0,"all",,,,"T"))&"-"&MOD(RTD("cqg.rtd",,"StudyData",$C27,"MaxAll^",,"Max",$R$3,0,"all",,,,"T"),1)*32,TEXT(RTD("cqg.rtd",,"StudyData",$C27,"MaxAll^",,"Max",$R$3,0,"all",,,,"T"),B27)),"") -> 4.6709 | S27: =IFERROR(RTD("cqg.rtd",,"StudyData",$C27,"MinAll^",,"Month",$R$3,0,"all",,,,"T")&"/"&RTD("cqg.rtd",,"StudyData",$C27,"MinAll^",,"Day",$R$3,0,"all",,,,"T")&"/"&RTD("cqg.rtd",,"StudyData",$C27,"MinAll^",,"Year",$R$3,0,"all",,,,"T"),"") -> 2/17/1999 | T27: =IFERROR(IF(B27="B",TRUNC(RTD("cqg.rtd",,"StudyData",$C27,"MinAll^",,"Min",$R$3,0,"all",,,,"T"))&"-"&MOD(RTD("cqg.rtd",,"StudyData",$C27,"MinAll^",,"Min",$R$3,0,"all",,,,"T"),1)*32,TEXT(RTD("cqg.rtd",,"StudyData",$C27,"MinAll^",,"Min",$R$3,0,"all",,,,"T"),B27)),"") -> .2930 | U27: HOE?
A28: =IF(LEN(RTD("cqg.rtd",,"ContractData","Tsize("&C28&")","LastQuoteToday",,"T"))-2<0,0,LEN(RTD("cqg.rtd",,"ContractData","Tsize("&C28&")","LastQuoteToday",,"T"))-2) -> 4 | B28: =IF(RTD("cqg.rtd",,"ContractData",C28,"TickSize",,"T")=0.00390625,"B",IF(RTD("cqg.rtd",,"ContractData",C28,"TickSize",,"T")=0.0078125,"B",IF(RTD("cqg.rtd",,"ContractData",C28,"TickSize",,"T")=0.015625,"B",IF(RTD("cqg.rtd",,"ContractData",C28,"TickSize",,"T")=0.03125,"B",VLOOKUP(A28,$A$43:$B$50,2,FALSE))))) -> #.0000 | C28: RBE? | D28: =IFERROR(RTD("cqg.rtd", ,"ContractData", $C28, "LongDescription",, "T"),"") -> RBOB Gasoline (Globex), Jul 22 | G28: =IFERROR(IF(B28="B",RTD("cqg.rtd", ,"ContractData",C28, "LastTradeToday",, "B"),TEXT(RTD("cqg.rtd", ,"ContractData",C28, "LastTradeToday",, "T"),B28)),"") -> 4.0777 | H28: =IFERROR(IF(B28="B",RTD("cqg.rtd", ,"ContractData",C28, "NetLastTradeToday",, "B"),TEXT(RTD("cqg.rtd", ,"ContractData",C28, "NetLastTradeToday",, "T"),B28)),"") -> .0424 | I28: =IFERROR(IF(B28="B",RTD("cqg.rtd", ,"ContractData",C28, "Y_Settlement",, "B"),TEXT(RTD("cqg.rtd", ,"ContractData",C28, "Y_Settlement",, "T"),B28)),"") -> 4.0353 | J28: =IFERROR(IF(B28="B",RTD("cqg.rtd", ,"ContractData",C28, "Open",, "B"),TEXT(RTD("cqg.rtd", ,"ContractData",C28, "Open",, "T"),B28)),"") -> 4.0100 | K28: =IFERROR(IF(B28="B",RTD("cqg.rtd", ,"ContractData",C28, "High",, "B"),TEXT(RTD("cqg.rtd", ,"ContractData",C28, "High",, "T"),B28)),"") -> 4.0931 | L28: =IFERROR(IF(B28="B",RTD("cqg.rtd", ,"ContractData",C28, "Low",, "B"),TEXT(RTD("cqg.rtd", ,"ContractData",C28, "Low",, "T"),B28)),"") -> 4.0074 | M28: =IFERROR(RTD("cqg.rtd", ,"ContractData",C28, "PerCentNetLastTrade",, "T")/100,"") -> 0.01050727331 | N28: =IFERROR( RTD("cqg.rtd",,"StudyData",C28, "PCB","BaseType=Index,Index=1", "Close", "AW",,"all",,,"True","T")/100,"") -> -0.02264992091 | O28: =IFERROR(RTD("cqg.rtd",,"StudyData",C28, "PCB","BaseType=Index,Index=1", "Close", "AM",,"all",,,"True","T")/100,"") -> 0.04123895613 | P28: =IFERROR( RTD("cqg.rtd",,"StudyData",C28, "PCB","BaseType=Index,Index=1", "Close", "AA",,"all",,,"True","T")/100,"") -> 0.7868191578 | Q28: =IFERROR(RTD("cqg.rtd",,"StudyData",$C28,"MaxAll^",,"Month",$R$3,0,"all",,,,"T")&"/"&RTD("cqg.rtd",,"StudyData",$C28,"MaxAll^",,"Day",$R$3,0,"all",,,,"T")&"/"&RTD("cqg.rtd",,"StudyData",$C28,"MaxAll^",,"Year",$R$3,0,"all",,,,"T"),"") -> 6/6/2022 | R28: =IFERROR(IF(B28="B",TRUNC(RTD("cqg.rtd",,"StudyData",$C28,"MaxAll^",,"Max",$R$3,0,"all",,,,"T"))&"-"&MOD(RTD("cqg.rtd",,"StudyData",$C28,"MaxAll^",,"Max",$R$3,0,"all",,,,"T"),1)*32,TEXT(RTD("cqg.rtd",,"StudyData",$C28,"MaxAll^",,"Max",$R$3,0,"all",,,,"T"),B28)),"") -> 4.3260 | S28: =IFERROR(RTD("cqg.rtd",,"StudyData",$C28,"MinAll^",,"Month",$R$3,0,"all",,,,"T")&"/"&RTD("cqg.rtd",,"StudyData",$C28,"MinAll^",,"Day",$R$3,0,"all",,,,"T")&"/"&RTD("cqg.rtd",,"StudyData",$C28,"MinAll^",,"Year",$R$3,0,"all",,,,"T"),"") -> 2/17/1999 | T28: =IFERROR(IF(B28="B",TRUNC(RTD("cqg.rtd",,"StudyData",$C28,"MinAll^",,"Min",$R$3,0,"all",,,,"T"))&"-"&MOD(RTD("cqg.rtd",,"StudyData",$C28,"MinAll^",,"Min",$R$3,0,"all",,,,"T"),1)*32,TEXT(RTD("cqg.rtd",,"StudyData",$C28,"MinAll^",,"Min",$R$3,0,"all",,,,"T"),B28)),"") -> .3255 | U28: RBE?
A29: =IF(LEN(RTD("cqg.rtd",,"ContractData","Tsize("&C29&")","LastQuoteToday",,"T"))-2<0,0,LEN(RTD("cqg.rtd",,"ContractData","Tsize("&C29&")","LastQuoteToday",,"T"))-2) -> 3 | B29: =IF(RTD("cqg.rtd",,"ContractData",C29,"TickSize",,"T")=0.00390625,"B",IF(RTD("cqg.rtd",,"ContractData",C29,"TickSize",,"T")=0.0078125,"B",IF(RTD("cqg.rtd",,"ContractData",C29,"TickSize",,"T")=0.015625,"B",IF(RTD("cqg.rtd",,"ContractData",C29,"TickSize",,"T")=0.03125,"B",VLOOKUP(A29,$A$43:$B$50,2,FALSE))))) -> #.000 | C29: NGE? | D29: =IFERROR(RTD("cqg.rtd", ,"ContractData", $C29, "LongDescription",, "T"),"") -> Natural Gas (Globex), Jul 22 | G29: =IFERROR(IF(B29="B",RTD("cqg.rtd", ,"ContractData",C29, "LastTradeToday",, "B"),TEXT(RTD("cqg.rtd", ,"ContractData",C29, "LastTradeToday",, "T"),B29)),"") -> 8.666 | H29: =IFERROR(IF(B29="B",RTD("cqg.rtd", ,"ContractData",C29, "NetLastTradeToday",, "B"),TEXT(RTD("cqg.rtd", ,"ContractData",C29, "NetLastTradeToday",, "T"),B29)),"") -> .057 | I29: =IFERROR(IF(B29="B",RTD("cqg.rtd", ,"ContractData",C29, "Y_Settlement",, "B"),TEXT(RTD("cqg.rtd", ,"ContractData",C29, "Y_Settlement",, "T"),B29)),"") -> 8.609 | J29: =IFERROR(IF(B29="B",RTD("cqg.rtd", ,"ContractData",C29, "Open",, "B"),TEXT(RTD("cqg.rtd", ,"ContractData",C29, "Open",, "T"),B29)),"") -> 8.686 | K29: =IFERROR(IF(B29="B",RTD("cqg.rtd", ,"ContractData",C29, "High",, "B"),TEXT(RTD("cqg.rtd", ,"ContractData",C29, "High",, "T"),B29)),"") -> 8.889 | L29: =IFERROR(IF(B29="B",RTD("cqg.rtd", ,"ContractData",C29, "Low",, "B"),TEXT(RTD("cqg.rtd", ,"ContractData",C29, "Low",, "T"),B29)),"") -> 8.472 | M29: =IFERROR(RTD("cqg.rtd", ,"ContractData",C29, "PerCentNetLastTrade",, "T")/100,"") -> 0.006620978046 | N29: =IFERROR( RTD("cqg.rtd",,"StudyData",C29, "PCB","BaseType=Index,Index=1", "Close", "AW",,"all",,,"True","T")/100,"") -> -0.02079096045 | O29: =IFERROR(RTD("cqg.rtd",,"StudyData",C29, "PCB","BaseType=Index,Index=1", "Close", "AM",,"all",,,"True","T")/100,"") -> 0.06396562308 | P29: =IFERROR( RTD("cqg.rtd",,"StudyData",C29, "PCB","BaseType=Index,Index=1", "Close", "AA",,"all",,,"True","T")/100,"") -> 1.382078065 | Q29: =IFERROR(RTD("cqg.rtd",,"StudyData",$C29,"MaxAll^",,"Month",$R$3,0,"all",,,,"T")&"/"&RTD("cqg.rtd",,"StudyData",$C29,"MaxAll^",,"Day",$R$3,0,"all",,,,"T")&"/"&RTD("cqg.rtd",,"StudyData",$C29,"MaxAll^",,"Year",$R$3,0,"all",,,,"T"),"") -> 12/13/2005 | R29: =IFERROR(IF(B29="B",TRUNC(RTD("cqg.rtd",,"StudyData",$C29,"MaxAll^",,"Max",$R$3,0,"all",,,,"T"))&"-"&MOD(RTD("cqg.rtd",,"StudyData",$C29,"MaxAll^",,"Max",$R$3,0,"all",,,,"T"),1)*32,TEXT(RTD("cqg.rtd",,"StudyData",$C29,"MaxAll^",,"Max",$R$3,0,"all",,,,"T"),B29)),"") -> 15.650 | S29: =IFERROR(RTD("cqg.rtd",,"StudyData",$C29,"MinAll^",,"Month",$R$3,0,"all",,,,"T")&"/"&RTD("cqg.rtd",,"StudyData",$C29,"MinAll^",,"Day",$R$3,0,"all",,,,"T")&"/"&RTD("cqg.rtd",,"StudyData",$C29,"MinAll^",,"Year",$R$3,0,"all",,,,"T"),"") -> 1/24/1992 | T29: =IFERROR(IF(B29="B",TRUNC(RTD("cqg.rtd",,"StudyData",$C29,"MinAll^",,"Min",$R$3,0,"all",,,,"T"))&"-"&MOD(RTD("cqg.rtd",,"StudyData",$C29,"MinAll^",,"Min",$R$3,0,"all",,,,"T"),1)*32,TEXT(RTD("cqg.rtd",,"StudyData",$C29,"MinAll^",,"Min",$R$3,0,"all",,,,"T"),B29)),"") -> 1.020 | U29: NGE?
A30: =IF(LEN(RTD("cqg.rtd",,"ContractData","Tsize("&C30&")","LastQuoteToday",,"T"))-2<0,0,LEN(RTD("cqg.rtd",,"ContractData","Tsize("&C30&")","LastQuoteToday",,"T"))-2) -> 3 | B30: =IF(RTD("cqg.rtd",,"ContractData",C30,"TickSize",,"T")=0.00390625,"B",IF(RTD("cqg.rtd",,"ContractData",C30,"TickSize",,"T")=0.0078125,"B",IF(RTD("cqg.rtd",,"ContractData",C30,"TickSize",,"T")=0.015625,"B",IF(RTD("cqg.rtd",,"ContractData",C30,"TickSize",,"T")=0.03125,"B",VLOOKUP(A30,$A$43:$B$50,2,FALSE))))) -> #.000 | C30: DXE? | D30: =IFERROR(RTD("cqg.rtd", ,"ContractData", $C30, "LongDescription",, "T"),"") -> Dollar Index (ICE), Sep 22 | G30: =IFERROR(IF(B30="B",RTD("cqg.rtd", ,"ContractData",C30, "LastTradeToday",, "B"),TEXT(RTD("cqg.rtd", ,"ContractData",C30, "LastTradeToday",, "T"),B30)),"") -> 104.885 | H30: =IFERROR(IF(B30="B",RTD("cqg.rtd", ,"ContractData",C30, "NetLastTradeToday",, "B"),TEXT(RTD("cqg.rtd", ,"ContractData",C30, "NetLastTradeToday",, "T"),B30)),"") -> -.081 | I30: =IFERROR(IF(B30="B",RTD("cqg.rtd", ,"ContractData",C30, "Y_Settlement",, "B"),TEXT(RTD("cqg.rtd", ,"ContractData",C30, "Y_Settlement",, "T"),B30)),"") -> 104.966 | J30: =IFERROR(IF(B30="B",RTD("cqg.rtd", ,"ContractData",C30, "Open",, "B"),TEXT(RTD("cqg.rtd", ,"ContractData",C30, "Open",, "T"),B30)),"") -> 105.005 | K30: =IFERROR(IF(B30="B",RTD("cqg.rtd", ,"ContractData",C30, "High",, "B"),TEXT(RTD("cqg.rtd", ,"ContractData",C30, "High",, "T"),B30)),"") -> 105.120 | L30: =IFERROR(IF(B30="B",RTD("cqg.rtd", ,"ContractData",C30, "Low",, "B"),TEXT(RTD("cqg.rtd", ,"ContractData",C30, "Low",, "T"),B30)),"") -> 104.480 | M30: =IFERROR(RTD("cqg.rtd", ,"ContractData",C30, "PerCentNetLastTrade",, "T")/100,"") -> -0.0007716784483 | N30: =IFERROR( RTD("cqg.rtd",,"StudyData",C30, "PCB","BaseType=Index,Index=1", "Close", "AW",,"all",,,"True","T")/100,"") -> 0.008383567439 | O30: =IFERROR(RTD("cqg.rtd",,"StudyData",C30, "PCB","BaseType=Index,Index=1", "Close", "AM",,"all",,,"True","T")/100,"") -> 0.03203809936 | P30: =IFERROR( RTD("cqg.rtd",,"StudyData",C30, "PCB","BaseType=Index,Index=1", "Close", "AA",,"all",,,"True","T")/100,"") -> 0.09898572895 | Q30: =IFERROR(RTD("cqg.rtd",,"StudyData",$C30,"MaxAll^",,"Month",$R$3,0,"all",,,,"T")&"/"&RTD("cqg.rtd",,"StudyData",$C30,"MaxAll^",,"Day",$R$3,0,"all",,,,"T")&"/"&RTD("cqg.rtd",,"StudyData",$C30,"MaxAll^",,"Year",$R$3,0,"all",,,,"T"),"") -> 11/20/1985 | R30: =IFERROR(IF(B30="B",TRUNC(RTD("cqg.rtd",,"StudyData",$C30,"MaxAll^",,"Max",$R$3,0,"all",,,,"T"))&"-"&MOD(RTD("cqg.rtd",,"StudyData",$C30,"MaxAll^",,"Max",$R$3,0,"all",,,,"T"),1)*32,TEXT(RTD("cqg.rtd",,"StudyData",$C30,"MaxAll^",,"Max",$R$3,0,"all",,,,"T"),B30)),"") -> 129.050 | S30: =IFERROR(RTD("cqg.rtd",,"StudyData",$C30,"MinAll^",,"Month",$R$3,0,"all",,,,"T")&"/"&RTD("cqg.rtd",,"StudyData",$C30,"MinAll^",,"Day",$R$3,0,"all",,,,"T")&"/"&RTD("cqg.rtd",,"StudyData",$C30,"MinAll^",,"Year",$R$3,0,"all",,,,"T"),"") -> 4/22/2008 | T30: =IFERROR(IF(B30="B",TRUNC(RTD("cqg.rtd",,"StudyData",$C30,"MinAll^",,"Min",$R$3,0,"all",,,,"T"))&"-"&MOD(RTD("cqg.rtd",,"StudyData",$C30,"MinAll^",,"Min",$R$3,0,"all",,,,"T"),1)*32,TEXT(RTD("cqg.rtd",,"StudyData",$C30,"MinAll^",,"Min",$R$3,0,"all",,,,"T"),B30)),"") -> 71.050 | U30: DXE?
A31: =IF(LEN(RTD("cqg.rtd",,"ContractData","Tsize("&C31&")","LastQuoteToday",,"T"))-2<0,0,LEN(RTD("cqg.rtd",,"ContractData","Tsize("&C31&")","LastQuoteToday",,"T"))-2) -> 5 | B31: =IF(RTD("cqg.rtd",,"ContractData",C31,"TickSize",,"T")=0.00390625,"B",IF(RTD("cqg.rtd",,"ContractData",C31,"TickSize",,"T")=0.0078125,"B",IF(RTD("cqg.rtd",,"ContractData",C31,"TickSize",,"T")=0.015625,"B",IF(RTD("cqg.rtd",,"ContractData",C31,"TickSize",,"T")=0.03125,"B",VLOOKUP(A31,$A$43:$B$50,2,FALSE))))) -> #.00000 | C31: EU6? | D31: =IFERROR(RTD("cqg.rtd", ,"ContractData", $C31, "LongDescription",, "T"),"") -> Euro FX (Globex), Sep 22 | G31: =IFERROR(IF(B31="B",RTD("cqg.rtd", ,"ContractData",C31, "LastTradeToday",, "B"),TEXT(RTD("cqg.rtd", ,"ContractData",C31, "LastTradeToday",, "T"),B31)),"") -> 1.05210 | H31: =IFERROR(IF(B31="B",RTD("cqg.rtd", ,"ContractData",C31, "NetLastTradeToday",, "B"),TEXT(RTD("cqg.rtd", ,"ContractData",C31, "NetLastTradeToday",, "T"),B31)),"") -> .00325 | I31: =IFERROR(IF(B31="B",RTD("cqg.rtd", ,"ContractData",C31, "Y_Settlement",, "B"),TEXT(RTD("cqg.rtd", ,"ContractData",C31, "Y_Settlement",, "T"),B31)),"") -> 1.04885 | J31: =IFERROR(IF(B31="B",RTD("cqg.rtd", ,"ContractData",C31, "Open",, "B"),TEXT(RTD("cqg.rtd", ,"ContractData",C31, "Open",, "T"),B31)),"") -> 1.04775 | K31: =IFERROR(IF(B31="B",RTD("cqg.rtd", ,"ContractData",C31, "High",, "B"),TEXT(RTD("cqg.rtd", ,"ContractData",C31, "High",, "T"),B31)),"") -> 1.05535 | L31: =IFERROR(IF(B31="B",RTD("cqg.rtd", ,"ContractData",C31, "Low",, "B"),TEXT(RTD("cqg.rtd", ,"ContractData",C31, "Low",, "T"),B31)),"") -> 1.04640 | M31: =IFERROR(RTD("cqg.rtd", ,"ContractData",C31, "PerCentNetLastTrade",, "T")/100,"") -> 0.003098631835 | N31: =IFERROR( RTD("cqg.rtd",,"StudyData",C31, "PCB","BaseType=Index,Index=1", "Close", "AW",,"all",,,"True","T")/100,"") -> -0.005999338656 | O31: =IFERROR(RTD("cqg.rtd",,"StudyData",C31, "PCB","BaseType=Index,Index=1", "Close", "AM",,"all",,,"True","T")/100,"") -> -0.02614893322 | P31: =IFERROR( RTD("cqg.rtd",,"StudyData",C31, "PCB","BaseType=Index,Index=1", "Close", "AA",,"all",,,"True","T")/100,"") -> -0.08229752715 | Q31: =IFERROR(RTD("cqg.rtd",,"StudyData",$C31,"MaxAll^",,"Month",$R$3,0,"all",,,,"T")&"/"&RTD("cqg.rtd",,"StudyData",$C31,"MaxAll^",,"Day",$R$3,0,"all",,,,"T")&"/"&RTD("cqg.rtd",,"StudyData",$C31,"MaxAll^",,"Year",$R$3,0,"all",,,,"T"),"") -> 7/15/2008 | R31: =IFERROR(IF(B31="B",TRUNC(RTD("cqg.rtd",,"StudyData",$C31,"MaxAll^",,"Max",$R$3,0,"all",,,,"T"))&"-"&MOD(RTD("cqg.rtd",,"StudyData",$C31,"MaxAll^",,"Max",$R$3,0,"all",,,,"T"),1)*32,TEXT(RTD("cqg.rtd",,"StudyData",$C31,"MaxAll^",,"Max",$R$3,0,"all",,,,"T"),B31)),"") -> 1.59880 | S31: =IFERROR(RTD("cqg.rtd",,"StudyData",$C31,"MinAll^",,"Month",$R$3,0,"all",,,,"T")&"/"&RTD("cqg.rtd",,"StudyData",$C31,"MinAll^",,"Day",$R$3,0,"all",,,,"T")&"/"&RTD("cqg.rtd",,"StudyData",$C31,"MinAll^",,"Year",$R$3,0,"all",,,,"T"),"") -> 7/6/2001 | T31: =IFERROR(IF(B31="B",TRUNC(RTD("cqg.rtd",,"StudyData",$C31,"MinAll^",,"Min",$R$3,0,"all",,,,"T"))&"-"&MOD(RTD("cqg.rtd",,"StudyData",$C31,"MinAll^",,"Min",$R$3,0,"all",,,,"T"),1)*32,TEXT(RTD("cqg.rtd",,"StudyData",$C31,"MinAll^",,"Min",$R$3,0,"all",,,,"T"),B31)),"") -> .83420 | U31: EU6?
A32: =IF(LEN(RTD("cqg.rtd",,"ContractData","Tsize("&C32&")","LastQuoteToday",,"T"))-2<0,0,LEN(RTD("cqg.rtd",,"ContractData","Tsize("&C32&")","LastQuoteToday",,"T"))-2) -> 7 | B32: =IF(RTD("cqg.rtd",,"ContractData",C32,"TickSize",,"T")=0.00390625,"B",IF(RTD("cqg.rtd",,"ContractData",C32,"TickSize",,"T")=0.0078125,"B",IF(RTD("cqg.rtd",,"ContractData",C32,"TickSize",,"T")=0.015625,"B",IF(RTD("cqg.rtd",,"ContractData",C32,"TickSize",,"T")=0.03125,"B",VLOOKUP(A32,$A$43:$B$50,2,FALSE))))) -> #.0000000 | C32: JY6? | D32: =IFERROR(RTD("cqg.rtd", ,"ContractData", $C32, "LongDescription",, "T"),"") -> Japanese Yen (Globex), Sep 22 | G32: =IFERROR(IF(B32="B",RTD("cqg.rtd", ,"ContractData",C32, "LastTradeToday",, "B"),TEXT(RTD("cqg.rtd", ,"ContractData",C32, "LastTradeToday",, "T"),B32)),"") -> .0074805 | H32: =IFERROR(IF(B32="B",RTD("cqg.rtd", ,"ContractData",C32, "NetLastTradeToday",, "B"),TEXT(RTD("cqg.rtd", ,"ContractData",C32, "NetLastTradeToday",, "T"),B32)),"") -> -.0000075 | I32: =IFERROR(IF(B32="B",RTD("cqg.rtd", ,"ContractData",C32, "Y_Settlement",, "B"),TEXT(RTD("cqg.rtd", ,"ContractData",C32, "Y_Settlement",, "T"),B32)),"") -> .0074880 | J32: =IFERROR(IF(B32="B",RTD("cqg.rtd", ,"ContractData",C32, "Open",, "B"),TEXT(RTD("cqg.rtd", ,"ContractData",C32, "Open",, "T"),B32)),"") -> .0074825 | K32: =IFERROR(IF(B32="B",RTD("cqg.rtd", ,"ContractData",C32, "High",, "B"),TEXT(RTD("cqg.rtd", ,"ContractData",C32, "High",, "T"),B32)),"") -> .0075150 | L32: =IFERROR(IF(B32="B",RTD("cqg.rtd", ,"ContractData",C32, "Low",, "B"),TEXT(RTD("cqg.rtd", ,"ContractData",C32, "Low",, "T"),B32)),"") -> .0074625 | M32: =IFERROR(RTD("cqg.rtd", ,"ContractData",C32, "PerCentNetLastTrade",, "T")/100,"") -> -0.001001602564 | N32: =IFERROR( RTD("cqg.rtd",,"StudyData",C32, "PCB","BaseType=Index,Index=1", "Close", "AW",,"all",,,"True","T")/100,"") -> -0.0002672903441 | O32: =IFERROR(RTD("cqg.rtd",,"StudyData",C32, "PCB","BaseType=Index,Index=1", "Close", "AM",,"all",,,"True","T")/100,"") -> -0.04280230326 | P32: =IFERROR( RTD("cqg.rtd",,"StudyData",C32, "PCB","BaseType=Index,Index=1", "Close", "AA",,"all",,,"True","T")/100,"") -> -0.1430289838 | Q32: =IFERROR(RTD("cqg.rtd",,"StudyData",$C32,"MaxAll^",,"Month",$R$3,0,"all",,,,"T")&"/"&RTD("cqg.rtd",,"StudyData",$C32,"MaxAll^",,"Day",$R$3,0,"all",,,,"T")&"/"&RTD("cqg.rtd",,"StudyData",$C32,"MaxAll^",,"Year",$R$3,0,"all",,,,"T"),"") -> 10/31/2011 | R32: =IFERROR(IF(B32="B",TRUNC(RTD("cqg.rtd",,"StudyData",$C32,"MaxAll^",,"Max",$R$3,0,"all",,,,"T"))&"-"&MOD(RTD("cqg.rtd",,"StudyData",$C32,"MaxAll^",,"Max",$R$3,0,"all",,,,"T"),1)*32,TEXT(RTD("cqg.rtd",,"StudyData",$C32,"MaxAll^",,"Max",$R$3,0,"all",,,,"T"),B32)),"") -> .0132640 | S32: =IFERROR(RTD("cqg.rtd",,"StudyData",$C32,"MinAll^",,"Month",$R$3,0,"all",,,,"T")&"/"&RTD("cqg.rtd",,"StudyData",$C32,"MinAll^",,"Day",$R$3,0,"all",,,,"T")&"/"&RTD("cqg.rtd",,"StudyData",$C32,"MinAll^",,"Year",$R$3,0,"all",,,,"T"),"") -> 2/27/2002 | T32: =IFERROR(IF(B32="B",TRUNC(RTD("cqg.rtd",,"StudyData",$C32,"MinAll^",,"Min",$R$3,0,"all",,,,"T"))&"-"&MOD(RTD("cqg.rtd",,"StudyData",$C32,"MinAll^",,"Min",$R$3,0,"all",,,,"T"),1)*32,TEXT(RTD("cqg.rtd",,"StudyData",$C32,"MinAll^",,"Min",$R$3,0,"all",,,,"T"),B32)),"") -> .0074150 | U32: JY6?
A33: =IF(LEN(RTD("cqg.rtd",,"ContractData","Tsize("&C33&")","LastQuoteToday",,"T"))-2<0,0,LEN(RTD("cqg.rtd",,"ContractData","Tsize("&C33&")","LastQuoteToday",,"T"))-2) -> 4 | B33: =IF(RTD("cqg.rtd",,"ContractData",C33,"TickSize",,"T")=0.00390625,"B",IF(RTD("cqg.rtd",,"ContractData",C33,"TickSize",,"T")=0.0078125,"B",IF(RTD("cqg.rtd",,"ContractData",C33,"TickSize",,"T")=0.015625,"B",IF(RTD("cqg.rtd",,"ContractData",C33,"TickSize",,"T")=0.03125,"B",VLOOKUP(A33,$A$43:$B$50,2,FALSE))))) -> #.0000 | C33: BP6? | D33: =IFERROR(RTD("cqg.rtd", ,"ContractData", $C33, "LongDescription",, "T"),"") -> British Pound (Globex), Sep 22 | G33: =IFERROR(IF(B33="B",RTD("cqg.rtd", ,"ContractData",C33, "LastTradeToday",, "B"),TEXT(RTD("cqg.rtd", ,"ContractData",C33, "LastTradeToday",, "T"),B33)),"") -> 1.2094 | H33: =IFERROR(IF(B33="B",RTD("cqg.rtd", ,"ContractData",C33, "NetLastTradeToday",, "B"),TEXT(RTD("cqg.rtd", ,"ContractData",C33, "NetLastTradeToday",, "T"),B33)),"") -> -.0057 | I33: =IFERROR(IF(B33="B",RTD("cqg.rtd", ,"ContractData",C33, "Y_Settlement",, "B"),TEXT(RTD("cqg.rtd", ,"ContractData",C33, "Y_Settlement",, "T"),B33)),"") -> 1.2151 | J33: =IFERROR(IF(B33="B",RTD("cqg.rtd", ,"ContractData",C33, "Open",, "B"),TEXT(RTD("cqg.rtd", ,"ContractData",C33, "Open",, "T"),B33)),"") -> 1.2148 | K33: =IFERROR(IF(B33="B",RTD("cqg.rtd", ,"ContractData",C33, "High",, "B"),TEXT(RTD("cqg.rtd", ,"ContractData",C33, "High",, "T"),B33)),"") -> 1.2225 | L33: =IFERROR(IF(B33="B",RTD("cqg.rtd", ,"ContractData",C33, "Low",, "B"),TEXT(RTD("cqg.rtd", ,"ContractData",C33, "Low",, "T"),B33)),"") -> 1.2083 | M33: =IFERROR(RTD("cqg.rtd", ,"ContractData",C33, "PerCentNetLastTrade",, "T")/100,"") -> -0.004690971936 | N33: =IFERROR( RTD("cqg.rtd",,"StudyData",C33, "PCB","BaseType=Index,Index=1", "Close", "AW",,"all",,,"True","T")/100,"") -> -0.01866277183 | O33: =IFERROR(RTD("cqg.rtd",,"StudyData",C33, "PCB","BaseType=Index,Index=1", "Close", "AM",,"all",,,"True","T")/100,"") -> -0.04114802188 | P33: =IFERROR( RTD("cqg.rtd",,"StudyData",C33, "PCB","BaseType=Index,Index=1", "Close", "AA",,"all",,,"True","T")/100,"") -> -0.1047449848 | Q33: =IFERROR(RTD("cqg.rtd",,"StudyData",$C33,"MaxAll^",,"Month",$R$3,0,"all",,,,"T")&"/"&RTD("cqg.rtd",,"StudyData",$C33,"MaxAll^",,"Day",$R$3,0,"all",,,,"T")&"/"&RTD("cqg.rtd",,"StudyData",$C33,"MaxAll^",,"Year",$R$3,0,"all",,,,"T"),"") -> 11/9/2007 | R33: =IFERROR(IF(B33="B",TRUNC(RTD("cqg.rtd",,"StudyData",$C33,"MaxAll^",,"Max",$R$3,0,"all",,,,"T"))&"-"&MOD(RTD("cqg.rtd",,"StudyData",$C33,"MaxAll^",,"Max",$R$3,0,"all",,,,"T"),1)*32,TEXT(RTD("cqg.rtd",,"StudyData",$C33,"MaxAll^",,"Max",$R$3,0,"all",,,,"T"),B33)),"") -> 2.1138 | S33: =IFERROR(RTD("cqg.rtd",,"StudyData",$C33,"MinAll^",,"Month",$R$3,0,"all",,,,"T")&"/"&RTD("cqg.rtd",,"StudyData",$C33,"MinAll^",,"Day",$R$3,0,"all",,,,"T")&"/"&RTD("cqg.rtd",,"StudyData",$C33,"MinAll^",,"Year",$R$3,0,"all",,,,"T"),"") -> 3/20/2020 | T33: =IFERROR(IF(B33="B",TRUNC(RTD("cqg.rtd",,"StudyData",$C33,"MinAll^",,"Min",$R$3,0,"all",,,,"T"))&"-"&MOD(RTD("cqg.rtd",,"StudyData",$C33,"MinAll^",,"Min",$R$3,0,"all",,,,"T"),1)*32,TEXT(RTD("cqg.rtd",,"StudyData",$C33,"MinAll^",,"Min",$R$3,0,"all",,,,"T"),B33)),"") -> 1.1438 | U33: BP6?
A34: =IF(LEN(RTD("cqg.rtd",,"ContractData","Tsize("&C34&")","LastQuoteToday",,"T"))-2<0,0,LEN(RTD("cqg.rtd",,"ContractData","Tsize("&C34&")","LastQuoteToday",,"T"))-2) -> 5 | B34: =IF(RTD("cqg.rtd",,"ContractData",C34,"TickSize",,"T")=0.00390625,"B",IF(RTD("cqg.rtd",,"ContractData",C34,"TickSize",,"T")=0.0078125,"B",IF(RTD("cqg.rtd",,"ContractData",C34,"TickSize",,"T")=0.015625,"B",IF(RTD("cqg.rtd",,"ContractData",C34,"TickSize",,"T")=0.03125,"B",VLOOKUP(A34,$A$43:$B$50,2,FALSE))))) -> #.00000 | C34: CA6? | D34: =IFERROR(RTD("cqg.rtd", ,"ContractData", $C34, "LongDescription",, "T"),"") -> Canadian Dollar (Globex), Sep 22 | G34: =IFERROR(IF(B34="B",RTD("cqg.rtd", ,"ContractData",C34, "LastTradeToday",, "B"),TEXT(RTD("cqg.rtd", ,"ContractData",C34, "LastTradeToday",, "T"),B34)),"") -> .77280 | H34: =IFERROR(IF(B34="B",RTD("cqg.rtd", ,"ContractData",C34, "NetLastTradeToday",, "B"),TEXT(RTD("cqg.rtd", ,"ContractData",C34, "NetLastTradeToday",, "T"),B34)),"") -> -.00340 | I34: =IFERROR(IF(B34="B",RTD("cqg.rtd", ,"ContractData",C34, "Y_Settlement",, "B"),TEXT(RTD("cqg.rtd", ,"ContractData",C34, "Y_Settlement",, "T"),B34)),"") -> .77620 | J34: =IFERROR(IF(B34="B",RTD("cqg.rtd", ,"ContractData",C34, "Open",, "B"),TEXT(RTD("cqg.rtd", ,"ContractData",C34, "Open",, "T"),B34)),"") -> .77530 | K34: =IFERROR(IF(B34="B",RTD("cqg.rtd", ,"ContractData",C34, "High",, "B"),TEXT(RTD("cqg.rtd", ,"ContractData",C34, "High",, "T"),B34)),"") -> .77720 | L34: =IFERROR(IF(B34="B",RTD("cqg.rtd", ,"ContractData",C34, "Low",, "B"),TEXT(RTD("cqg.rtd", ,"ContractData",C34, "Low",, "T"),B34)),"") -> .77275 | M34: =IFERROR(RTD("cqg.rtd", ,"ContractData",C34, "PerCentNetLastTrade",, "T")/100,"") -> -0.004380314352 | N34: =IFERROR( RTD("cqg.rtd",,"StudyData",C34, "PCB","BaseType=Index,Index=1", "Close", "AW",,"all",,,"True","T")/100,"") -> -0.01359372008 | O34: =IFERROR(RTD("cqg.rtd",,"StudyData",C34, "PCB","BaseType=Index,Index=1", "Close", "AM",,"all",,,"True","T")/100,"") -> -0.02220535206 | P34: =IFERROR( RTD("cqg.rtd",,"StudyData",C34, "PCB","BaseType=Index,Index=1", "Close", "AA",,"all",,,"True","T")/100,"") -> -0.02071849458 | Q34: =IFERROR(RTD("cqg.rtd",,"StudyData",$C34,"MaxAll^",,"Month",$R$3,0,"all",,,,"T")&"/"&RTD("cqg.rtd",,"StudyData",$C34,"MaxAll^",,"Day",$R$3,0,"all",,,,"T")&"/"&RTD("cqg.rtd",,"StudyData",$C34,"MaxAll^",,"Year",$R$3,0,"all",,,,"T"),"") -> 11/7/2007 | R34: =IFERROR(IF(B34="B",TRUNC(RTD("cqg.rtd",,"StudyData",$C34,"MaxAll^",,"Max",$R$3,0,"all",,,,"T"))&"-"&MOD(RTD("cqg.rtd",,"StudyData",$C34,"MaxAll^",,"Max",$R$3,0,"all",,,,"T"),1)*32,TEXT(RTD("cqg.rtd",,"StudyData",$C34,"MaxAll^",,"Max",$R$3,0,"all",,,,"T"),B34)),"") -> 1.10430 | S34: =IFERROR(RTD("cqg.rtd",,"StudyData",$C34,"MinAll^",,"Month",$R$3,0,"all",,,,"T")&"/"&RTD("cqg.rtd",,"StudyData",$C34,"MinAll^",,"Day",$R$3,0,"all",,,,"T")&"/"&RTD("cqg.rtd",,"StudyData",$C34,"MinAll^",,"Year",$R$3,0,"all",,,,"T"),"") -> 1/17/2002 | T34: =IFERROR(IF(B34="B",TRUNC(RTD("cqg.rtd",,"StudyData",$C34,"MinAll^",,"Min",$R$3,0,"all",,,,"T"))&"-"&MOD(RTD("cqg.rtd",,"StudyData",$C34,"MinAll^",,"Min",$R$3,0,"all",,,,"T"),1)*32,TEXT(RTD("cqg.rtd",,"StudyData",$C34,"MinAll^",,"Min",$R$3,0,"all",,,,"T"),B34)),"") -> .61700 | U34: CA6?
A35: =IF(LEN(RTD("cqg.rtd",,"ContractData","Tsize("&C35&")","LastQuoteToday",,"T"))-2<0,0,LEN(RTD("cqg.rtd",,"ContractData","Tsize("&C35&")","LastQuoteToday",,"T"))-2) -> 5 | B35: =IF(RTD("cqg.rtd",,"ContractData",C35,"TickSize",,"T")=0.00390625,"B",IF(RTD("cqg.rtd",,"ContractData",C35,"TickSize",,"T")=0.0078125,"B",IF(RTD("cqg.rtd",,"ContractData",C35,"TickSize",,"T")=0.015625,"B",IF(RTD("cqg.rtd",,"ContractData",C35,"TickSize",,"T")=0.03125,"B",VLOOKUP(A35,$A$43:$B$50,2,FALSE))))) -> #.00000 | C35: SF6? | D35: =IFERROR(RTD("cqg.rtd", ,"ContractData", $C35, "LongDescription",, "T"),"") -> Swiss Franc (Globex), Sep 22 | G35: =IFERROR(IF(B35="B",RTD("cqg.rtd", ,"ContractData",C35, "LastTradeToday",, "B"),TEXT(RTD("cqg.rtd", ,"ContractData",C35, "LastTradeToday",, "T"),B35)),"") -> 1.01240 | H35: =IFERROR(IF(B35="B",RTD("cqg.rtd", ,"ContractData",C35, "NetLastTradeToday",, "B"),TEXT(RTD("cqg.rtd", ,"ContractData",C35, "NetLastTradeToday",, "T"),B35)),"") -> .00335 | I35: =IFERROR(IF(B35="B",RTD("cqg.rtd", ,"ContractData",C35, "Y_Settlement",, "B"),TEXT(RTD("cqg.rtd", ,"ContractData",C35, "Y_Settlement",, "T"),B35)),"") -> 1.00905 | J35: =IFERROR(IF(B35="B",RTD("cqg.rtd", ,"ContractData",C35, "Open",, "B"),TEXT(RTD("cqg.rtd", ,"ContractData",C35, "Open",, "T"),B35)),"") -> 1.00890 | K35: =IFERROR(IF(B35="B",RTD("cqg.rtd", ,"ContractData",C35, "High",, "B"),TEXT(RTD("cqg.rtd", ,"ContractData",C35, "High",, "T"),B35)),"") -> 1.01985 | L35: =IFERROR(IF(B35="B",RTD("cqg.rtd", ,"ContractData",C35, "Low",, "B"),TEXT(RTD("cqg.rtd", ,"ContractData",C35, "Low",, "T"),B35)),"") -> 1.00890 | M35: =IFERROR(RTD("cqg.rtd", ,"ContractData",C35, "PerCentNetLastTrade",, "T")/100,"") -> 0.003319954413 | N35: =IFERROR( RTD("cqg.rtd",,"StudyData",C35, "PCB","BaseType=Index,Index=1", "Close", "AW",,"all",,,"True","T")/100,"") -> -0.005989199804 | O35: =IFERROR(RTD("cqg.rtd",,"StudyData",C35, "PCB","BaseType=Index,Index=1", "Close", "AM",,"all",,,"True","T")/100,"") -> -0.03590134273 | P35: =IFERROR( RTD("cqg.rtd",,"StudyData",C35, "PCB","BaseType=Index,Index=1", "Close", "AA",,"all",,,"True","T")/100,"") -> -0.08487751966 | Q35: =IFERROR(RTD("cqg.rtd",,"StudyData",$C35,"MaxAll^",,"Month",$R$3,0,"all",,,,"T")&"/"&RTD("cqg.rtd",,"StudyData",$C35,"MaxAll^",,"Day",$R$3,0,"all",,,,"T")&"/"&RTD("cqg.rtd",,"StudyData",$C35,"MaxAll^",,"Year",$R$3,0,"all",,,,"T"),"") -> 8/9/2011 | R35: =IFERROR(IF(B35="B",TRUNC(RTD("cqg.rtd",,"StudyData",$C35,"MaxAll^",,"Max",$R$3,0,"all",,,,"T"))&"-"&MOD(RTD("cqg.rtd",,"StudyData",$C35,"MaxAll^",,"Max",$R$3,0,"all",,,,"T"),1)*32,TEXT(RTD("cqg.rtd",,"StudyData",$C35,"MaxAll^",,"Max",$R$3,0,"all",,,,"T"),B35)),"") -> 1.41670 | S35: =IFERROR(RTD("cqg.rtd",,"StudyData",$C35,"MinAll^",,"Month",$R$3,0,"all",,,,"T")&"/"&RTD("cqg.rtd",,"StudyData",$C35,"MinAll^",,"Day",$R$3,0,"all",,,,"T")&"/"&RTD("cqg.rtd",,"StudyData",$C35,"MinAll^",,"Year",$R$3,0,"all",,,,"T"),"") -> 7/6/2001 | T35: =IFERROR(IF(B35="B",TRUNC(RTD("cqg.rtd",,"StudyData",$C35,"MinAll^",,"Min",$R$3,0,"all",,,,"T"))&"-"&MOD(RTD("cqg.rtd",,"StudyData",$C35,"MinAll^",,"Min",$R$3,0,"all",,,,"T"),1)*32,TEXT(RTD("cqg.rtd",,"StudyData",$C35,"MinAll^",,"Min",$R$3,0,"all",,,,"T"),B35)),"") -> .54920 | U35: SF6?
A36: =IF(LEN(RTD("cqg.rtd",,"ContractData","Tsize("&C36&")","LastQuoteToday",,"T"))-2<0,0,LEN(RTD("cqg.rtd",,"ContractData","Tsize("&C36&")","LastQuoteToday",,"T"))-2) -> 5 | B36: =IF(RTD("cqg.rtd",,"ContractData",C36,"TickSize",,"T")=0.00390625,"B",IF(RTD("cqg.rtd",,"ContractData",C36,"TickSize",,"T")=0.0078125,"B",IF(RTD("cqg.rtd",,"ContractData",C36,"TickSize",,"T")=0.015625,"B",IF(RTD("cqg.rtd",,"ContractData",C36,"TickSize",,"T")=0.03125,"B",VLOOKUP(A36,$A$43:$B$50,2,FALSE))))) -> #.00000 | C36: DA6? | D36: =IFERROR(RTD("cqg.rtd", ,"ContractData", $C36, "LongDescription",, "T"),"") -> Australian Dollar (Globex), Sep 22 | G36: =IFERROR(IF(B36="B",RTD("cqg.rtd", ,"ContractData",C36, "LastTradeToday",, "B"),TEXT(RTD("cqg.rtd", ,"ContractData",C36, "LastTradeToday",, "T"),B36)),"") -> .68960 | H36: =IFERROR(IF(B36="B",RTD("cqg.rtd", ,"ContractData",C36, "NetLastTradeToday",, "B"),TEXT(RTD("cqg.rtd", ,"ContractData",C36, "NetLastTradeToday",, "T"),B36)),"") -> -.00370 | I36: =IFERROR(IF(B36="B",RTD("cqg.rtd", ,"ContractData",C36, "Y_Settlement",, "B"),TEXT(RTD("cqg.rtd", ,"ContractData",C36, "Y_Settlement",, "T"),B36)),"") -> .69330 | J36: =IFERROR(IF(B36="B",RTD("cqg.rtd", ,"ContractData",C36, "Open",, "B"),TEXT(RTD("cqg.rtd", ,"ContractData",C36, "Open",, "T"),B36)),"") -> .69325 | K36: =IFERROR(IF(B36="B",RTD("cqg.rtd", ,"ContractData",C36, "High",, "B"),TEXT(RTD("cqg.rtd", ,"ContractData",C36, "High",, "T"),B36)),"") -> .69750 | L36: =IFERROR(IF(B36="B",RTD("cqg.rtd", ,"ContractData",C36, "Low",, "B"),TEXT(RTD("cqg.rtd", ,"ContractData",C36, "Low",, "T"),B36)),"") -> .68875 | M36: =IFERROR(RTD("cqg.rtd", ,"ContractData",C36, "PerCentNetLastTrade",, "T")/100,"") -> -0.005336795038 | N36: =IFERROR( RTD("cqg.rtd",,"StudyData",C36, "PCB","BaseType=Index,Index=1", "Close", "AW",,"all",,,"True","T")/100,"") -> -0.02288345731 | O36: =IFERROR(RTD("cqg.rtd",,"StudyData",C36, "PCB","BaseType=Index,Index=1", "Close", "AM",,"all",,,"True","T")/100,"") -> -0.03955431755 | P36: =IFERROR( RTD("cqg.rtd",,"StudyData",C36, "PCB","BaseType=Index,Index=1", "Close", "AA",,"all",,,"True","T")/100,"") -> -0.05300741555 | Q36: =IFERROR(RTD("cqg.rtd",,"StudyData",$C36,"MaxAll^",,"Month",$R$3,0,"all",,,,"T")&"/"&RTD("cqg.rtd",,"StudyData",$C36,"MaxAll^",,"Day",$R$3,0,"all",,,,"T")&"/"&RTD("cqg.rtd",,"StudyData",$C36,"MaxAll^",,"Year",$R$3,0,"all",,,,"T"),"") -> 7/28/2011 | R36: =IFERROR(IF(B36="B",TRUNC(RTD("cqg.rtd",,"StudyData",$C36,"MaxAll^",,"Max",$R$3,0,"all",,,,"T"))&"-"&MOD(RTD("cqg.rtd",,"StudyData",$C36,"MaxAll^",,"Max",$R$3,0,"all",,,,"T"),1)*32,TEXT(RTD("cqg.rtd",,"StudyData",$C36,"MaxAll^",,"Max",$R$3,0,"all",,,,"T"),B36)),"") -> 1.10050 | S36: =IFERROR(RTD("cqg.rtd",,"StudyData",$C36,"MinAll^",,"Month",$R$3,0,"all",,,,"T")&"/"&RTD("cqg.rtd",,"StudyData",$C36,"MinAll^",,"Day",$R$3,0,"all",,,,"T")&"/"&RTD("cqg.rtd",,"StudyData",$C36,"MinAll^",,"Year",$R$3,0,"all",,,,"T"),"") -> 4/1/2001 | T36: =IFERROR(IF(B36="B",TRUNC(RTD("cqg.rtd",,"StudyData",$C36,"MinAll^",,"Min",$R$3,0,"all",,,,"T"))&"-"&MOD(RTD("cqg.rtd",,"StudyData",$C36,"MinAll^",,"Min",$R$3,0,"all",,,,"T"),1)*32,TEXT(RTD("cqg.rtd",,"StudyData",$C36,"MinAll^",,"Min",$R$3,0,"all",,,,"T"),B36)),"") -> .47740 | U36: DA6?
A37: =IF(LEN(RTD("cqg.rtd",,"ContractData","Tsize("&C37&")","LastQuoteToday",,"T"))-2<0,0,LEN(RTD("cqg.rtd",,"ContractData","Tsize("&C37&")","LastQuoteToday",,"T"))-2) -> 5 | B37: =IF(RTD("cqg.rtd",,"ContractData",C37,"TickSize",,"T")=0.00390625,"B",IF(RTD("cqg.rtd",,"ContractData",C37,"TickSize",,"T")=0.0078125,"B",IF(RTD("cqg.rtd",,"ContractData",C37,"TickSize",,"T")=0.015625,"B",IF(RTD("cqg.rtd",,"ContractData",C37,"TickSize",,"T")=0.03125,"B",VLOOKUP(A37,$A$43:$B$50,2,FALSE))))) -> #.00000 | C37: NE6? | D37: =IFERROR(RTD("cqg.rtd", ,"ContractData", $C37, "LongDescription",, "T"),"") -> New Zealand Dollar (Globex), Sep 22 | G37: =IFERROR(IF(B37="B",RTD("cqg.rtd", ,"ContractData",C37, "LastTradeToday",, "B"),TEXT(RTD("cqg.rtd", ,"ContractData",C37, "LastTradeToday",, "T"),B37)),"") -> .62290 | H37: =IFERROR(IF(B37="B",RTD("cqg.rtd", ,"ContractData",C37, "NetLastTradeToday",, "B"),TEXT(RTD("cqg.rtd", ,"ContractData",C37, "NetLastTradeToday",, "T"),B37)),"") -> -.00180 | I37: =IFERROR(IF(B37="B",RTD("cqg.rtd", ,"ContractData",C37, "Y_Settlement",, "B"),TEXT(RTD("cqg.rtd", ,"ContractData",C37, "Y_Settlement",, "T"),B37)),"") -> .62470 | J37: =IFERROR(IF(B37="B",RTD("cqg.rtd", ,"ContractData",C37, "Open",, "B"),TEXT(RTD("cqg.rtd", ,"ContractData",C37, "Open",, "T"),B37)),"") -> .62485 | K37: =IFERROR(IF(B37="B",RTD("cqg.rtd", ,"ContractData",C37, "High",, "B"),TEXT(RTD("cqg.rtd", ,"ContractData",C37, "High",, "T"),B37)),"") -> .62835 | L37: =IFERROR(IF(B37="B",RTD("cqg.rtd", ,"ContractData",C37, "Low",, "B"),TEXT(RTD("cqg.rtd", ,"ContractData",C37, "Low",, "T"),B37)),"") -> .62240 | M37: =IFERROR(RTD("cqg.rtd", ,"ContractData",C37, "PerCentNetLastTrade",, "T")/100,"") -> -0.002881383064 | N37: =IFERROR( RTD("cqg.rtd",,"StudyData",C37, "PCB","BaseType=Index,Index=1", "Close", "AW",,"all",,,"True","T")/100,"") -> -0.01866876723 | O37: =IFERROR(RTD("cqg.rtd",,"StudyData",C37, "PCB","BaseType=Index,Index=1", "Close", "AM",,"all",,,"True","T")/100,"") -> -0.04147110872 | P37: =IFERROR( RTD("cqg.rtd",,"StudyData",C37, "PCB","BaseType=Index,Index=1", "Close", "AA",,"all",,,"True","T")/100,"") -> -0.08464364438 | Q37: =IFERROR(RTD("cqg.rtd",,"StudyData",$C37,"MaxAll^",,"Month",$R$3,0,"all",,,,"T")&"/"&RTD("cqg.rtd",,"StudyData",$C37,"MaxAll^",,"Day",$R$3,0,"all",,,,"T")&"/"&RTD("cqg.rtd",,"StudyData",$C37,"MaxAll^",,"Year",$R$3,0,"all",,,,"T"),"") -> 8/1/2011 | R37: =IFERROR(IF(B37="B",TRUNC(RTD("cqg.rtd",,"StudyData",$C37,"MaxAll^",,"Max",$R$3,0,"all",,,,"T"))&"-"&MOD(RTD("cqg.rtd",,"StudyData",$C37,"MaxAll^",,"Max",$R$3,0,"all",,,,"T"),1)*32,TEXT(RTD("cqg.rtd",,"StudyData",$C37,"MaxAll^",,"Max",$R$3,0,"all",,,,"T"),B37)),"") -> .88080 | S37: =IFERROR(RTD("cqg.rtd",,"StudyData",$C37,"MinAll^",,"Month",$R$3,0,"all",,,,"T")&"/"&RTD("cqg.rtd",,"StudyData",$C37,"MinAll^",,"Day",$R$3,0,"all",,,,"T")&"/"&RTD("cqg.rtd",,"StudyData",$C37,"MinAll^",,"Year",$R$3,0,"all",,,,"T"),"") -> 9/27/2001 | T37: =IFERROR(IF(B37="B",TRUNC(RTD("cqg.rtd",,"StudyData",$C37,"MinAll^",,"Min",$R$3,0,"all",,,,"T"))&"-"&MOD(RTD("cqg.rtd",,"StudyData",$C37,"MinAll^",,"Min",$R$3,0,"all",,,,"T"),1)*32,TEXT(RTD("cqg.rtd",,"StudyData",$C37,"MinAll^",,"Min",$R$3,0,"all",,,,"T"),B37)),"") -> .39650 | U37: NE6?
A38: =IF(LEN(RTD("cqg.rtd",,"ContractData","Tsize("&C38&")","LastQuoteToday",,"T"))-2<0,0,LEN(RTD("cqg.rtd",,"ContractData","Tsize("&C38&")","LastQuoteToday",,"T"))-2) -> 5 | B38: =IF(RTD("cqg.rtd",,"ContractData",C38,"TickSize",,"T")=0.00390625,"B",IF(RTD("cqg.rtd",,"ContractData",C38,"TickSize",,"T")=0.0078125,"B",IF(RTD("cqg.rtd",,"ContractData",C38,"TickSize",,"T")=0.015625,"B",IF(RTD("cqg.rtd",,"ContractData",C38,"TickSize",,"T")=0.03125,"B",VLOOKUP(A38,$A$43:$B$50,2,FALSE))))) -> #.00000 | C38: MX6? | D38: =IFERROR(RTD("cqg.rtd", ,"ContractData", $C38, "LongDescription",, "T"),"") -> Mexican Peso (Globex), Sep 22 | G38: =IFERROR(IF(B38="B",RTD("cqg.rtd", ,"ContractData",C38, "LastTradeToday",, "B"),TEXT(RTD("cqg.rtd", ,"ContractData",C38, "LastTradeToday",, "T"),B38)),"") -> .04770 | H38: =IFERROR(IF(B38="B",RTD("cqg.rtd", ,"ContractData",C38, "NetLastTradeToday",, "B"),TEXT(RTD("cqg.rtd", ,"ContractData",C38, "NetLastTradeToday",, "T"),B38)),"") -> -.00025 | I38: =IFERROR(IF(B38="B",RTD("cqg.rtd", ,"ContractData",C38, "Y_Settlement",, "B"),TEXT(RTD("cqg.rtd", ,"ContractData",C38, "Y_Settlement",, "T"),B38)),"") -> .04795 | J38: =IFERROR(IF(B38="B",RTD("cqg.rtd", ,"ContractData",C38, "Open",, "B"),TEXT(RTD("cqg.rtd", ,"ContractData",C38, "Open",, "T"),B38)),"") -> .04792 | K38: =IFERROR(IF(B38="B",RTD("cqg.rtd", ,"ContractData",C38, "High",, "B"),TEXT(RTD("cqg.rtd", ,"ContractData",C38, "High",, "T"),B38)),"") -> .04821 | L38: =IFERROR(IF(B38="B",RTD("cqg.rtd", ,"ContractData",C38, "Low",, "B"),TEXT(RTD("cqg.rtd", ,"ContractData",C38, "Low",, "T"),B38)),"") -> .04758 | M38: =IFERROR(RTD("cqg.rtd", ,"ContractData",C38, "PerCentNetLastTrade",, "T")/100,"") -> -0.005213764338 | N38: =IFERROR( RTD("cqg.rtd",,"StudyData",C38, "PCB","BaseType=Index,Index=1", "Close", "AW",,"all",,,"True","T")/100,"") -> -0.02910645227 | O38: =IFERROR(RTD("cqg.rtd",,"StudyData",C38, "PCB","BaseType=Index,Index=1", "Close", "AM",,"all",,,"True","T")/100,"") -> -0.04159132007 | P38: =IFERROR( RTD("cqg.rtd",,"StudyData",C38, "PCB","BaseType=Index,Index=1", "Close", "AA",,"all",,,"True","T")/100,"") -> 0.02580645161 | Q38: =IFERROR(RTD("cqg.rtd",,"StudyData",$C38,"MaxAll^",,"Month",$R$3,0,"all",,,,"T")&"/"&RTD("cqg.rtd",,"StudyData",$C38,"MaxAll^",,"Day",$R$3,0,"all",,,,"T")&"/"&RTD("cqg.rtd",,"StudyData",$C38,"MaxAll^",,"Year",$R$3,0,"all",,,,"T"),"") -> 5/22/2001 | R38: =IFERROR(IF(B38="B",TRUNC(RTD("cqg.rtd",,"StudyData",$C38,"MaxAll^",,"Max",$R$3,0,"all",,,,"T"))&"-"&MOD(RTD("cqg.rtd",,"StudyData",$C38,"MaxAll^",,"Max",$R$3,0,"all",,,,"T"),1)*32,TEXT(RTD("cqg.rtd",,"StudyData",$C38,"MaxAll^",,"Max",$R$3,0,"all",,,,"T"),B38)),"") -> .11140 | S38: =IFERROR(RTD("cqg.rtd",,"StudyData",$C38,"MinAll^",,"Month",$R$3,0,"all",,,,"T")&"/"&RTD("cqg.rtd",,"StudyData",$C38,"MinAll^",,"Day",$R$3,0,"all",,,,"T")&"/"&RTD("cqg.rtd",,"StudyData",$C38,"MinAll^",,"Year",$R$3,0,"all",,,,"T"),"") -> 4/6/2020 | T38: =IFERROR(IF(B38="B",TRUNC(RTD("cqg.rtd",,"StudyData",$C38,"MinAll^",,"Min",$R$3,0,"all",,,,"T"))&"-"&MOD(RTD("cqg.rtd",,"StudyData",$C38,"MinAll^",,"Min",$R$3,0,"all",,,,"T"),1)*32,TEXT(RTD("cqg.rtd",,"StudyData",$C38,"MinAll^",,"Min",$R$3,0,"all",,,,"T"),B38)),"") -> .03835 | U38: MX6?
A39: =IF(LEN(RTD("cqg.rtd",,"ContractData","Tsize("&C39&")","LastQuoteToday",,"T"))-2<0,0,LEN(RTD("cqg.rtd",,"ContractData","Tsize("&C39&")","LastQuoteToday",,"T"))-2) -> 5 | B39: =IF(RTD("cqg.rtd",,"ContractData",C39,"TickSize",,"T")=0.00390625,"B",IF(RTD("cqg.rtd",,"ContractData",C39,"TickSize",,"T")=0.0078125,"B",IF(RTD("cqg.rtd",,"ContractData",C39,"TickSize",,"T")=0.015625,"B",IF(RTD("cqg.rtd",,"ContractData",C39,"TickSize",,"T")=0.03125,"B",VLOOKUP(A39,$A$43:$B$50,2,FALSE))))) -> #.00000 | C39: EB? | D39: =IFERROR(RTD("cqg.rtd", ,"ContractData", $C39, "LongDescription",, "T"),"") -> Euro/British Pound (Globex), Sep 22 | G39: =IFERROR(IF(B39="B",RTD("cqg.rtd", ,"ContractData",C39, "LastTradeToday",, "B"),TEXT(RTD("cqg.rtd", ,"ContractData",C39, "LastTradeToday",, "T"),B39)),"") -> .86980 | H39: =IFERROR(IF(B39="B",RTD("cqg.rtd", ,"ContractData",C39, "NetLastTradeToday",, "B"),TEXT(RTD("cqg.rtd", ,"ContractData",C39, "NetLastTradeToday",, "T"),B39)),"") -> .00660 | I39: =IFERROR(IF(B39="B",RTD("cqg.rtd", ,"ContractData",C39, "Y_Settlement",, "B"),TEXT(RTD("cqg.rtd", ,"ContractData",C39, "Y_Settlement",, "T"),B39)),"") -> .86320 | J39: =IFERROR(IF(B39="B",RTD("cqg.rtd", ,"ContractData",C39, "Open",, "B"),TEXT(RTD("cqg.rtd", ,"ContractData",C39, "Open",, "T"),B39)),"") -> .86285 | K39: =IFERROR(IF(B39="B",RTD("cqg.rtd", ,"ContractData",C39, "High",, "B"),TEXT(RTD("cqg.rtd", ,"ContractData",C39, "High",, "T"),B39)),"") -> .87025 | L39: =IFERROR(IF(B39="B",RTD("cqg.rtd", ,"ContractData",C39, "Low",, "B"),TEXT(RTD("cqg.rtd", ,"ContractData",C39, "Low",, "T"),B39)),"") -> .85970 | M39: =IFERROR(RTD("cqg.rtd", ,"ContractData",C39, "PerCentNetLastTrade",, "T")/100,"") -> 0.007645968489 | N39: =IFERROR( RTD("cqg.rtd",,"StudyData",C39, "PCB","BaseType=Index,Index=1", "Close", "AW",,"all",,,"True","T")/100,"") -> 0.01274960703 | O39: =IFERROR(RTD("cqg.rtd",,"StudyData",C39, "PCB","BaseType=Index,Index=1", "Close", "AM",,"all",,,"True","T")/100,"") -> 0.01540975951 | P39: =IFERROR( RTD("cqg.rtd",,"StudyData",C39, "PCB","BaseType=Index,Index=1", "Close", "AA",,"all",,,"True","T")/100,"") -> 0.02492193484 | Q39: =IFERROR(RTD("cqg.rtd",,"StudyData",$C39,"MaxAll^",,"Month",$R$3,0,"all",,,,"T")&"/"&RTD("cqg.rtd",,"StudyData",$C39,"MaxAll^",,"Day",$R$3,0,"all",,,,"T")&"/"&RTD("cqg.rtd",,"StudyData",$C39,"MaxAll^",,"Year",$R$3,0,"all",,,,"T"),"") -> 12/30/2008 | R39: =IFERROR(IF(B39="B",TRUNC(RTD("cqg.rtd",,"StudyData",$C39,"MaxAll^",,"Max",$R$3,0,"all",,,,"T"))&"-"&MOD(RTD("cqg.rtd",,"StudyData",$C39,"MaxAll^",,"Max",$R$3,0,"all",,,,"T"),1)*32,TEXT(RTD("cqg.rtd",,"StudyData",$C39,"MaxAll^",,"Max",$R$3,0,"all",,,,"T"),B39)),"") -> .98000 | S39: =IFERROR(RTD("cqg.rtd",,"StudyData",$C39,"MinAll^",,"Month",$R$3,0,"all",,,,"T")&"/"&RTD("cqg.rtd",,"StudyData",$C39,"MinAll^",,"Day",$R$3,0,"all",,,,"T")&"/"&RTD("cqg.rtd",,"StudyData",$C39,"MinAll^",,"Year",$R$3,0,"all",,,,"T"),"") -> 5/3/2000 | T39: =IFERROR(IF(B39="B",TRUNC(RTD("cqg.rtd",,"StudyData",$C39,"MinAll^",,"Min",$R$3,0,"all",,,,"T"))&"-"&MOD(RTD("cqg.rtd",,"StudyData",$C39,"MinAll^",,"Min",$R$3,0,"all",,,,"T"),1)*32,TEXT(RTD("cqg.rtd",,"StudyData",$C39,"MinAll^",,"Min",$R$3,0,"all",,,,"T"),B39)),"") -> .57550 | U39: EB?
A40: =IF(LEN(RTD("cqg.rtd",,"ContractData","Tsize("&C40&")","LastQuoteToday",,"T"))-2<0,0,LEN(RTD("cqg.rtd",,"ContractData","Tsize("&C40&")","LastQuoteToday",,"T"))-2) -> 0 | B40: =IF(RTD("cqg.rtd",,"ContractData",C40,"TickSize",,"T")=0.00390625,"B",IF(RTD("cqg.rtd",,"ContractData",C40,"TickSize",,"T")=0.0078125,"B",IF(RTD("cqg.rtd",,"ContractData",C40,"TickSize",,"T")=0.015625,"B",IF(RTD("cqg.rtd",,"ContractData",C40,"TickSize",,"T")=0.03125,"B",VLOOKUP(A40,$A$43:$B$50,2,FALSE))))) -> # | C40: BTC? | D40: =IFERROR(RTD("cqg.rtd", ,"ContractData", $C40, "LongDescription",, "T"),"") -> Bitcoin (Globex), Jun 22 | G40: =IFERROR(IF(B40="B",RTD("cqg.rtd", ,"ContractData",C40, "LastTradeToday",, "B"),TEXT(RTD("cqg.rtd", ,"ContractData",C40, "LastTradeToday",, "T"),B40)),"") -> 21865 | H40: =IFERROR(IF(B40="B",RTD("cqg.rtd", ,"ContractData",C40, "NetLastTradeToday",, "B"),TEXT(RTD("cqg.rtd", ,"ContractData",C40, "NetLastTradeToday",, "T"),B40)),"") -> -1245 | I40: =IFERROR(IF(B40="B",RTD("cqg.rtd", ,"ContractData",C40, "Y_Settlement",, "B"),TEXT(RTD("cqg.rtd", ,"ContractData",C40, "Y_Settlement",, "T"),B40)),"") -> 23110 | J40: =IFERROR(IF(B40="B",RTD("cqg.rtd", ,"ContractData",C40, "Open",, "B"),TEXT(RTD("cqg.rtd", ,"ContractData",C40, "Open",, "T"),B40)),"") -> 23010 | K40: =IFERROR(IF(B40="B",RTD("cqg.rtd", ,"ContractData",C40, "High",, "B"),TEXT(RTD("cqg.rtd", ,"ContractData",C40, "High",, "T"),B40)),"") -> 23290 | L40: =IFERROR(IF(B40="B",RTD("cqg.rtd", ,"ContractData",C40, "Low",, "B"),TEXT(RTD("cqg.rtd", ,"ContractData",C40, "Low",, "T"),B40)),"") -> 20775 | M40: =IFERROR(RTD("cqg.rtd", ,"ContractData",C40, "PerCentNetLastTrade",, "T")/100,"") -> -0.05387278235 | N40: =IFERROR( RTD("cqg.rtd",,"StudyData",C40, "PCB","BaseType=Index,Index=1", "Close", "AW",,"all",,,"True","T")/100,"") -> -0.2439488243 | O40: =IFERROR(RTD("cqg.rtd",,"StudyData",C40, "PCB","BaseType=Index,Index=1", "Close", "AM",,"all",,,"True","T")/100,"") -> -0.3091627172 | P40: =IFERROR( RTD("cqg.rtd",,"StudyData",C40, "PCB","BaseType=Index,Index=1", "Close", "AA",,"all",,,"True","T")/100,"") -> -0.5346882315 | Q40: =IFERROR(RTD("cqg.rtd",,"StudyData",$C40,"MaxAll^",,"Month",$R$3,0,"all",,,,"T")&"/"&RTD("cqg.rtd",,"StudyData",$C40,"MaxAll^",,"Day",$R$3,0,"all",,,,"T")&"/"&RTD("cqg.rtd",,"StudyData",$C40,"MaxAll^",,"Year",$R$3,0,"all",,,,"T"),"") -> 11/10/2021 | R40: =IFERROR(IF(B40="B",TRUNC(RTD("cqg.rtd",,"StudyData",$C40,"MaxAll^",,"Max",$R$3,0,"all",,,,"T"))&"-"&MOD(RTD("cqg.rtd",,"StudyData",$C40,"MaxAll^",,"Max",$R$3,0,"all",,,,"T"),1)*32,TEXT(RTD("cqg.rtd",,"StudyData",$C40,"MaxAll^",,"Max",$R$3,0,"all",,,,"T"),B40)),"") -> 69355 | S40: =IFERROR(RTD("cqg.rtd",,"StudyData",$C40,"MinAll^",,"Month",$R$3,0,"all",,,,"T")&"/"&RTD("cqg.rtd",,"StudyData",$C40,"MinAll^",,"Day",$R$3,0,"all",,,,"T")&"/"&RTD("cqg.rtd",,"StudyData",$C40,"MinAll^",,"Year",$R$3,0,"all",,,,"T"),"") -> 12/14/2018 | T40: =IFERROR(IF(B40="B",TRUNC(RTD("cqg.rtd",,"StudyData",$C40,"MinAll^",,"Min",$R$3,0,"all",,,,"T"))&"-"&MOD(RTD("cqg.rtd",,"StudyData",$C40,"MinAll^",,"Min",$R$3,0,"all",,,,"T"),1)*32,TEXT(RTD("cqg.rtd",,"StudyData",$C40,"MinAll^",,"Min",$R$3,0,"all",,,,"T"),B40)),"") -> 3120 | U40: BTC?
A41: =IF(LEN(RTD("cqg.rtd",,"ContractData","Tsize("&C41&")","LastQuoteToday",,"T"))-2<0,0,LEN(RTD("cqg.rtd",,"ContractData","Tsize("&C41&")","LastQuoteToday",,"T"))-2) -> 2 | B41: =IF(RTD("cqg.rtd",,"ContractData",C41,"TickSize",,"T")=0.00390625,"B",IF(RTD("cqg.rtd",,"ContractData",C41,"TickSize",,"T")=0.0078125,"B",IF(RTD("cqg.rtd",,"ContractData",C41,"TickSize",,"T")=0.015625,"B",IF(RTD("cqg.rtd",,"ContractData",C41,"TickSize",,"T")=0.03125,"B",VLOOKUP(A41,$A$43:$B$50,2,FALSE))))) -> #.00 | C41: COIN | D41: =IFERROR(RTD("cqg.rtd", ,"ContractData", $C41, "LongDescription",, "T"),"") -> Coinbase Global, Inc. Class A | G41: =IFERROR(IF(B41="B",RTD("cqg.rtd", ,"ContractData",C41, "LastTradeToday",, "B"),TEXT(RTD("cqg.rtd", ,"ContractData",C41, "LastTradeToday",, "T"),B41)),"") ->  | H41: =IFERROR(IF(B41="B",RTD("cqg.rtd", ,"ContractData",C41, "NetLastTradeToday",, "B"),TEXT(RTD("cqg.rtd", ,"ContractData",C41, "NetLastTradeToday",, "T"),B41)),"") ->  | I41: =IFERROR(IF(B41="B",RTD("cqg.rtd", ,"ContractData",C41, "Y_Settlement",, "B"),TEXT(RTD("cqg.rtd", ,"ContractData",C41, "Y_Settlement",, "T"),B41)),"") -> 52.01 | J41: =IFERROR(IF(B41="B",RTD("cqg.rtd", ,"ContractData",C41, "Open",, "B"),TEXT(RTD("cqg.rtd", ,"ContractData",C41, "Open",, "T"),B41)),"") ->  | K41: =IFERROR(IF(B41="B",RTD("cqg.rtd", ,"ContractData",C41, "High",, "B"),TEXT(RTD("cqg.rtd", ,"ContractData",C41, "High",, "T"),B41)),"") ->  | L41: =IFERROR(IF(B41="B",RTD("cqg.rtd", ,"ContractData",C41, "Low",, "B"),TEXT(RTD("cqg.rtd", ,"ContractData",C41, "Low",, "T"),B41)),"") ->  | M41: =IFERROR(RTD("cqg.rtd", ,"ContractData",C41, "PerCentNetLastTrade",, "T")/100,"") ->  | N41: =IFERROR( RTD("cqg.rtd",,"StudyData",C41, "PCB","BaseType=Index,Index=1", "Close", "AW",,"all",,,"True","T")/100,"") -> -0.1141202521 | O41: =IFERROR(RTD("cqg.rtd",,"StudyData",C41, "PCB","BaseType=Index,Index=1", "Close", "AM",,"all",,,"True","T")/100,"") -> -0.3340588988 | P41: =IFERROR( RTD("cqg.rtd",,"StudyData",C41, "PCB","BaseType=Index,Index=1", "Close", "AA",,"all",,,"True","T")/100,"") -> -0.7939136981 | Q41: =IFERROR(RTD("cqg.rtd",,"StudyData",$C41,"MaxAll^",,"Month",$R$3,0,"all",,,,"T")&"/"&RTD("cqg.rtd",,"StudyData",$C41,"MaxAll^",,"Day",$R$3,0,"all",,,,"T")&"/"&RTD("cqg.rtd",,"StudyData",$C41,"MaxAll^",,"Year",$R$3,0,"all",,,,"T"),"") -> 4/14/2021 | R41: =IFERROR(IF(B41="B",TRUNC(RTD("cqg.rtd",,"StudyData",$C41,"MaxAll^",,"Max",$R$3,0,"all",,,,"T"))&"-"&MOD(RTD("cqg.rtd",,"StudyData",$C41,"MaxAll^",,"Max",$R$3,0,"all",,,,"T"),1)*32,TEXT(RTD("cqg.rtd",,"StudyData",$C41,"MaxAll^",,"Max",$R$3,0,"all",,,,"T"),B41)),"") -> 429.54 | S41: =IFERROR(RTD("cqg.rtd",,"StudyData",$C41,"MinAll^",,"Month",$R$3,0,"all",,,,"T")&"/"&RTD("cqg.rtd",,"StudyData",$C41,"MinAll^",,"Day",$R$3,0,"all",,,,"T")&"/"&RTD("cqg.rtd",,"StudyData",$C41,"MinAll^",,"Year",$R$3,0,"all",,,,"T"),"") -> 5/12/2022 | T41: =IFERROR(IF(B41="B",TRUNC(RTD("cqg.rtd",,"StudyData",$C41,"MinAll^",,"Min",$R$3,0,"all",,,,"T"))&"-"&MOD(RTD("cqg.rtd",,"StudyData",$C41,"MinAll^",,"Min",$R$3,0,"all",,,,"T"),1)*32,TEXT(RTD("cqg.rtd",,"StudyData",$C41,"MinAll^",,"Min",$R$3,0,"all",,,,"T"),B41)),"") -> 40.83 | U41: COIN
C42: Copyright © 2022 CQG Inc. | Q42: The dashboard when first launched may take a few minutes to populate due to the large amount of historical data being pulled from CQG.
A43: 0 | B43: #
A44: 1 | B44: #.0
A45: 2 | B45: #.00
A46: 3 | B46: #.000
A47: 4 | B47: #.0000
A48: 5 | B48: #.00000
A49: 6 | B49: #.000000
A50: 7 | B50: #.0000000
